Workbook

Sheet Instructions (hidden)
A1: General Instructions
A2: Planners should at a minimum complete the "Basic" worksheet. This information will autopopulate to other worksheets including the a Implementation Requirement Template. DO NOT full out the IR Format worksheet! Fill out the Basic Plan Worksheet to autopopulate this document. The IR Format can then be copied or clipped and pasted as a JPG or PDF in the Implementation Requirement (IR) Sheet. The IR is to be given to the producer prior to implementing the practice.
A4: Oklahoma Phosphorus Assessment Instructions
A5: The Oklahoma Phosphorus Assessment Worksheet was originally developed by Ken Matlock, State Agronomist, with computer assistance from Harold Kane, Computer Specialist, both of Stillwater, Oklahoma with additional input and cooperation from Oklahoma State University faculty and staff. They include Dr. Hailin Zhang, Dr. Gordon Johnson, Dr. Dan Storm, Dr. Nick Basta, and Dr. Mike Smolen. Revised in 2020 as part of updating 590 with the help of ODAFF and OSU.
A7: The Oklahoma Phosphorus Assessment Worksheet was developed to assess the potential transport of phosphorus when manure or organic by-products are applied to a field. It has also been designed to determine maximum rates of phosphorus application when manure or organic by-products are applied to a field. Manure or organic by-products shall be applied to match the nitrogen requirement of the crop not to exceed the maximum phosphorus application rate determined by the Oklahoma Phosphorus Assessment Worksheet.
A9: P Worksheet Instructions
A11: To begin using this program, click on the box beside Client Name. Move from cell to cell by using the Tab key or Arrow keys. Use the Backspace key to empty a cell or delete information from a cell. Many of the cells are locked and can not be accessed. This is to protect the formulas used in the spreadsheet. A column on the right hand side of the spreadsheet will warn you if data is missing or has been incorrectly entered.
A13: Client Name: Type in the name of the client. This cell does not have to be filled in order for the program to function.
A15: Fields: Enter the field number or some identification of the field. This cell does not have to be filled in order for the program to function.
A17: Date: Enter the date of the assessment. This cell does not have to be filled in order for the program to function.
A19: Planner: Enter the name of the person doing the assessment. This cell does not have to be filled for the program to function.
A21: Location: Enter the location of the field. This cell does not have to be filled for the program to function.
A23: Crop: Enter the crops or forages being grown. This cell does not have to be filled for the program to function properly.
A25: Landuse: Drop down menu to select crop, hay, or pasture. If perennial grass that is hayed and grazed, select pasture.
A27: Soil Test P Index: Enter the soil test phosphorus for the field from a current soil test. The soil test will be made at the OSU soils laboratory or at a soils laboratory that uses the same phosphorus extractant (Mehlich-3) as OSU. The laboratory must be a member of the North American Proficiency Testing Program. This cell must be filled with the soil test phosphorus index.
A29: Application Method: Place an "x" below the method that best describes how and when the manure will be applied. One of the cells must be filled with an x.
A31: Land Slope %: Determine the average slope of the field then place an "x" below one of the slope categories. One of the cells must be filled with an x.
A33: Erosion Rate Greater Than "T": Determine if the erosion rate from wind or water exceeds the soil loss tolerance or if there is active gully erosion in the field. One of the cells must be filled with an x.
A35: Flooding Frequency: Use Section II of the NRCS Field Office Technical Guide (FOTG) or the published soil survey to determine if any of the soils in the field, on which manure will be applied, have been identified as having a flooding occurance. Place an "x" in the proper cell. One cell must be filled with an x.
A37: Landuse Management: Management requirements will populate when the Land Use is completed above. Place an "x" in the proper cell for management at the time of planning. If management levels are not presently met, then planning can be used to address deficiencies prior to the next plan revisions.
A39: Distance of Manure Application to Perennial Stream, Pond, Well, or Sinkhole: Determine the distance of the manure application from perennial water, well, or sinkhole. Place an "x" in the proper cell. One of the cells must be filled with an x. Use the NRCS County Soil Survey to determine if the designation of the stream is perennial. If an established and properly maintained buffer strip is present, then an adequate buffer zone will be considered established. The buffer strip must meet the requirements of the appropriate NRCS buffer standard. Place an "x" under the > 100 ft. cell. The buffer strip will be a set back distance for the application of manure. No manure or organic by-products will be applied to the buffer strip. Liquid manure may not be land applied within 300 ft. of a public or private water well or 500 ft. of an occupied residence not owned or operated by the feeding operation.
A41: Distance of Manure Application to Intermittent Stream: Determine the distance of the manure application to an intermittent stream. Place an "x" in the proper cell. One cell must be filled with an x. Use the NRCS County Soil Survey to determine if the designation of the stream is intermittent. If an established and properly maintained buffer strip is present, then an adequate buffer zone will be considered established. The buffer strip must meet the requirements of the appropriate NRCS buffer standard. Place an "x" under the > 50 ft. cell. The buffer strip will be a set back distance for the application of manure. No manure or organic by-products will be applied to the buffer strip.
A43: Depth of Soil: Determine the depth of soil from the soil description in Section II of the NRCS FOTG or the published soil survey. Then place an "x" in the proper cell. One cell must be filled with an x.
A45: Rocks > 10" in diameter which cover > 3% of the soil surface: Use Section II of the NRCS FOTG, the published soil survey, or field observation to determine if the soil has been identified with this characteristic. Place an "x" in the proper cell. One cell must be filled with an x.
A47: Check over the entries made in the worksheet. Make sure the data is entered properly. This must be done to insure the proper result. If a user fails to enter the appropriate text or fails to make an entry, a warning or error message will appear in the far right hand column of the spreadsheet. At the bottom of the worksheet you will find two blocks. They are identified as Non-Nutrient Limited Watershed and Nutrient Limited Watershed. The result from the data entered will appear in one of these two blocks depending on the yes or no entry in the Nutrient Limited Watershed cell. The worksheet can be printed using the print function in Excel. All the data entry cells can be cleared by using the Ctrl + c keys at the same time.
A49: Dry Animal Waste Application Worksheet Instructions
A51: This worksheet will provide a summary of dry animal waste applications for a client's farm. The worksheet has space for up to 17 fields per farm and includes formulas to do some of the calculations as well as summarizing the appropriate columns. The worksheet includes the current application restrictions that are contained in the NRCS Nutrient Management Standard (590). The worksheet may be cleared using "Ctrl + a". The worksheet can be saved and included in a client's file in Customer Service Toolkit. This worksheet is designed as a tool for working with clients. It is not required for documentation purposes.
A53: Client Name: Type in the name of the client. This entry is not required for the program to function.
A55: Planner: Type the name of the person doing the summary sheet. This entry is not required for the program to function.
A57: Date: Enter the date of the summary. This entry is not required for the program to function.
A59: Manure Analysis: Enter the manure analysis in "pounds per ton" for N-P2O-K2O as shown on the current manure test. Entry of a zero in the phosphorus cell (J4) may show "#DIV/0!". This cell is a key entry to the function of the formulas and must be greater than "0" and this will remove the error message.
A61: Enter the Field(s), Total Acre(s), and Field Application Acre(s): There are 17 field entry lines. Field numbers and Total Acres are not required for the program to function. Field Application Acres are required for the formulas of the worksheet.
A63: Enter the Crop, Grass, or Sequence/Rotation: Abbreviate as necessary, ie., bermuda, old world, alfalfa, wheat, etc. This entry is not required for the program to function.
A65: Allowable P2O5 Application Rate by Field: Enter the maximum allowed rate for the field application acres according to the Oklahoma Phosphorus Assessment Tool worksheet. This entry is required for the formulas of the worksheet.
A67: Maximum Manure Rate by Field (Tons/Field), Total Manure Nutrient Application (Total pounds per field): Entries are caluculated by worksheet formulas. Please note that due to rounding the actual pounds calculated for nitrogen and potassium may be slightly less.
A69: Additional Fertilizer Nutrients: This column allows for the additional inorganic fertilizer amounts of N-P2O5-K2O to be recorded by field. These amounts should be available on the Nutrient Budget Worksheet as determined by the Oklahoma NRCS Nutrient Management Standard (590).
A71: Additional Application Notes and Recommendations: This cell is for the planner to record any additional specific notes and recommendations that the client will need as a result of the application of manure.
A73: Ctrl + a clears worksheet: This will clear the worksheet for re-use on another client. A completed worksheet should be printed and/or saved as needed for the nutrient management plan.
A75: Liquid Animal Waste Application Worksheet Instructions
A77: This worksheet will provide a summary of liquid animal waste applications for a client's farm. The worksheet has space for up to 15 fields per farm and includes formulas to do some of the calculations as well as summarizing the appropriate columns. The worksheet includes the current application restrictions that are contained in the NRCS Nutrient Management Standard (590). The worksheet may be cleared using "Ctrl + f ". The worksheet can be saved and included in a client's file in Customer Service Toolkit. This worksheet is designed as a tool for working with clients. It is not required for documentation purposes.
A79: Client Name: Type in the name of the client. This entry is not required for the program to function.
A81: Planner: Type the name of the person doing the summary sheet. This entry is not required for the program to function.
A83: Date: Enter the date of the assessment. This cell does not have to be filled in order for the program to function.
A85: Manure Analysis: Enter the manure analysis in "lbs./1000 gallons" for N-P2O-K2O as shown on the current manure test using cells J4, K4, & L4. Entry of a zero in the phosphorus cell (K4) may show "#DIV/0!". This cell is a key entry to the function of the formulas and must be greater than "0" and this will remove the error message. Enter an Ac.-In. Rate in cell K5. This will calculate the Total lbs. Applied for N-P205-K20.
A87: Enter the Field(s), Total Acre(s), and Field Application Acre(s): There are 15 field entry lines. Field numbers and Total Acres are not required for the program to function. Field Application Acres are required for the formulas of the worksheet.
A89: Enter the Crop, Grass, or Sequence/Rotation: Abbreviate as necessary, ie., bermuda, old world, alfalfa, wheat, etc. This entry is not required for the program to function.
A91: Allowable P2O5 Application Rate by Field: Enter the maximum allowed rate for the field application acres according to the Oklahoma Phosphorus Assessment Tool worksheet. This entry is required for the formulas of the worksheet.
A93: Maximum Manure Rate by Field: Includes three columns (G, H, I). Column G shows the Ac.-In rates from 1/8 inch through 1 inch. Column H shows the gallon rates for each Ac.-In value. Column I shows the "lbs. P205" applied to each field. These entries are calulated using Columns C, F, cell K4 and cell H7.
A95: Additional Fertilizer Nutrients To be Applied / Yield Goal (lbs./acre): These amounts will have to be determined by the planner to balance out the remaining nutrients to address the agronomic recommendations for the crop grown.
A97: All programs and services of the Natural Resources Conservation Service are provided in a nondiscriminatory manner. The U.S. Department of Agriculture (USDA) prohibits discrimination in all its programs and activities on the basis of race, color, national origin, age, disability, and where applicable, sex, marital status, familial status, parental status, religion, sexual orientation, genetic information, political beliefs, reprisal, or because all or a part of an individual's income is derived from any public assistance program. (Not all prohibited bases apply to all programs.) Persons with disabilities who require alternative means for communication of program information (Braille, large print, audiotape, etc.) should contact USDA's TARGET Center at (202) 720-2600 (voice and TDD). To file a complaint of discrimination write to USDA, Director, Office of Civil Rights, 1400 Independence Avenue, S.W., Washington, D.C. 20250-9410 or call (800) 795-3272 (voice) or (202) 720-6382 (TDD). USDA is an equal opportunity provider and employer.

Sheet Oklahoma NLW Map (hidden)

Sheet Oklahoma GWV Map (hidden)

Sheet Basic (hidden)
A1: CPS 590 Nutrient Management - Nutrient Budget Worksheet
B3: Client Name:
B4: Field | J4: Acres | AB4: No Mitigating Activities Required.
B5: Basic | F5: Zone | J5: Grid | N5: Sensor/VRA | AB5: Delay nitrogen application until plants are actively growing (4” minimum height).
B6: Soil Erosion Below T (Y/N) | J6: Type of Crop | AB6: Apply split applications of 50% of the total nitrogen needs.
AB7: Seasonal nitrogen requirements for actively growing plants shall be split to provide no more than 40 lbs of actual nitrogen every 4-6 weeks. Warm season plants – apply <40 lbs/acre Nitrogen during early spring (green up), after first cutting or grazing (late May - early June), or late summer. Cool season plants - apply <40 lbs/ac in the fall at planting. Add the remaining recommended amount in the early spring (Feb-March).
A8: Nitrogen Risk Assessments | AB8: Nitrogen will not be applied during expected heavy rainfall months (April, May, and June) on warm season plants.
A9: Leaching Index: | H9: Groundwater Vulnerability Rating: | AB9: Lower realistic yield expectation by 25%.
A10: Rating: | H10: No. of Mitigating Activities: | AB10: Use enhanced efficiency fertilizer products (sulfur coated urea products, polymer coated fertilizers, uncoated slow release fertilizers).
A11: Mitigating Activities | AB11: Utilize nitrogen rich strip and GreenSeeker sensors to make mid-season nitrogen applications.
AB12: Use precision agricultural technologies to precisely apply variable rates of nitrogen fertilizer.
AB13: Utilize annual soil testing.
AB14: Banding nitrogen applications.
AB15: Use legume crops and cover crops to provide nitrogen through biological fixation and nutrient recycling.
A16: Phosphorus Risk Assessment
A17: Soil Test P Index: | I17: Rate: (Full, Half, Removal, None)
A18: Rating: Low, Mod, High | I18: P2O5 Application Rate Allowed:
A20: Manure or Organic Analysis
A21: Manure Source: | O21: Analysis Date:
A22: Manure Analysis (N, P, K, EC) | G22: N | J22: P | M22: K | P22: EC
A24: Soil Test Data
A25: Soil Test Date: | J25: Yield Goal
A26: Melich 3 used (Y/N) | H26: N | J26: P | L26: K | N26: pH | P26: EC | R26: BI
A27: Soil Test Results
A28: Nutrient Recs to meet Yield Goal
A29: Credits | B29: Previous legume crops residual
B30: Residual manure or other
B31: Irrigation water
B32: Other
B33: Total Credits | H33: =SUM(H27+H29+H30+H31+H32) -> 0 | J33: =SUM(J29:K32) -> 0 | L33: =SUM(L29:M32) -> 0
A35: Nutrient Application (actual nutrients)
C36: Benchmark System | I36: Planned or Alternative 1 | O36: Planned or Alternative 2
C37: N | E37: P | G37: K | I37: N | K37: P | M37: K | O37: N | Q37: P | S37: K
A38: Preplant
A39: Starter
A40: In season
A41: Manure
A42: Other
A43: Total App. Nutrients | C43: =SUM(C38:D42) -> 0 | E43: =SUM(E38:F42) -> 0 | G43: =SUM(G38:H42) -> 0 | I43: =SUM(I38:J42) -> 0 | K43: =SUM(K38:L42) -> 0 | M43: =SUM(M38:N42) -> 0 | O43: =SUM(O38:P42) -> 0 | Q43: =SUM(Q38:R42) -> 0 | S43: =SUM(S38:T42) -> 0
A45: Total Nutrients | C45: =SUM(C43+H33) -> 0 | E45: =SUM(E43+J33) -> 0 | G45: =SUM(G43+L33) -> 0 | I45: =SUM(I43+H33) -> 0 | K45: =SUM(K43+J33) -> 0 | M45: =SUM(M43+L33) -> 0 | O45: =SUM(O43+H33) -> 0 | Q45: =SUM(Q43+J33) -> 0 | S45: =SUM(S43+L33) -> 0
A46: Nut. Balance | C46: =C45-H28 -> 0 | E46: =E45-J28 -> 0 | G46: =G45-L28 -> 0 | I46: =I45-H28 -> 0 | K46: =K45-J28 -> 0 | M46: =M45-L28 -> 0 | O46: =O45-H28 -> 0 | Q46: =Q45-J28 -> 0 | S46: =S45-L28 -> 0
A47: Notes:
A50: Planned By: | O50: Date:

Sheet IR Format (hidden)
A1: Instructions: DO NOT FILL OUT THIS SHEET! Fill out the Basic Plan Worksheet to autopopulate this document. This can then be copied or clipped and pasted as a JPG or PDF in the Implementation Requirement (IR) Sheet. The IR is to be given to the producer prior to implementing the practice. Additional data sheets or IR's may be provided to the producer.
B3: Client Name: | E3: =Basic!E3 -> 0
B4: Field | D4: =Basic!D4 -> 0 | J4: Acres | L4: =Basic!L4 -> 0
B5: Basic | D5: =Basic!D5 -> 0 | F5: Zone | H5: =Basic!H5 -> 0 | J5: Grid | L5: =Basic!L5 -> 0 | N5: Sensor/VRA | Q5: =Basic!Q5 -> 0
B6: Soil Erosion Below T (Y/N) | G6: =Basic!G6 -> 0 | J6: Type of Crop | M6: =Basic!M6 -> 0
A8: Nitrogen Risk Assessments
A9: Leaching Index: | D9: =Basic!D9 -> 0 | H9: Groundwater Vulnerability Rating: | N9: =Basic!N9 -> 0
A10: Rating: | D10: =Basic!D10 -> 0 | H10: No. of Mitigating Activities: | N10: =Basic!N10 -> 0
A11: Mitigating Activities | D11: =Basic!D11 -> 0
A12: =Basic!A12 -> 0
A13: =Basic!A13 -> 0
A14: =Basic!A14 -> 0
A16: Phosphorus Risk Assessment
A17: Soil Test P Index: | F17: =Basic!F17 -> 0 | I17: Rate: (Full, Half, Removal, None) | O17: =Basic!O17 -> 0
A18: Rating: Low, Mod, High | F18: =Basic!F18 -> 0 | I18: P2O5 Application Rate Allowed: | O18: =Basic!O18 -> 0
A20: Manure or Organic Analysis
A21: Manure Source: | D21: =Basic!D21 -> 0 | O21: Analysis Date: | R21: =Basic!R21 -> 00:00:00
A22: Manure Analysis (N, P, K, EC) | G22: N | H22: =Basic!H22 -> 0 | J22: P | K22: =Basic!K22 -> 0 | M22: K | N22: =Basic!N22 -> 0 | P22: EC | Q22: =Basic!Q22 -> 0
A24: Soil Test Data
A25: Soil Test Date: | D25: =Basic!D25 -> 00:00:00 | J25: Yield Goal | M25: =Basic!M25 -> 0
A26: Melich 3 used (Y/N) | E26: =Basic!E26 -> 0 | H26: N | J26: P | L26: K | N26: pH | P26: EC | R26: BI
A27: Soil Test Results | H27: =Basic!H27 -> 0 | J27: =Basic!J27 -> 0 | L27: =Basic!L27 -> 0 | N27: =Basic!N27 -> 0 | P27: =Basic!P27 -> 0 | R27: =Basic!R27 -> 0
A28: Nutrient Recs to meet Yield Goal | H28: =Basic!H28 -> 0 | J28: =Basic!J28 -> 0 | L28: =Basic!L28 -> 0 | N28: =Basic!N28 -> 0 | P28: =Basic!P28 -> 0
A29: Credits | B29: Previous legume crops residual | H29: =Basic!H29 -> 0 | J29: =Basic!J29 -> 0 | L29: =Basic!L29 -> 0
B30: Residual manure or other | H30: =Basic!H30 -> 0 | J30: =Basic!J30 -> 0 | L30: =Basic!L30 -> 0
B31: Irrigation water | H31: =Basic!H31 -> 0 | J31: =Basic!J31 -> 0 | L31: =Basic!L31 -> 0
B32: Other | H32: =Basic!H32 -> 0 | J32: =Basic!J32 -> 0 | L32: =Basic!L32 -> 0
B33: Total Credits | H33: =SUM(H27+H29+H30+H31+H32) -> 0 | J33: =SUM(J29:K32) -> 0 | L33: =SUM(L29:M32) -> 0
A35: Nutrient Application (actual nutrients)
C36: Benchmark System | I36: Planned or Alternative 1 | O36: Planned or Alternative 2
C37: N | E37: P | G37: K | I37: N | K37: P | M37: K | O37: N | Q37: P | S37: K
A38: Preplant | C38: =Basic!C38 -> 0 | E38: =Basic!E38 -> 0 | G38: =Basic!G38 -> 0 | I38: =Basic!I38 -> 0 | K38: =Basic!K38 -> 0 | M38: =Basic!M38 -> 0 | O38: =Basic!O38 -> 0 | Q38: =Basic!Q38 -> 0 | S38: =Basic!S38 -> 0
A39: Starter | C39: =Basic!C39 -> 0 | E39: =Basic!E39 -> 0 | G39: =Basic!G39 -> 0 | I39: =Basic!I39 -> 0 | K39: =Basic!K39 -> 0 | M39: =Basic!M39 -> 0 | O39: =Basic!O39 -> 0 | Q39: =Basic!Q39 -> 0 | S39: =Basic!S39 -> 0
A40: In season | C40: =Basic!C40 -> 0 | E40: =Basic!E40 -> 0 | G40: =Basic!G40 -> 0 | I40: =Basic!I40 -> 0 | K40: =Basic!K40 -> 0 | M40: =Basic!M40 -> 0 | O40: =Basic!O40 -> 0 | Q40: =Basic!Q40 -> 0 | S40: =Basic!S40 -> 0
A41: Manure | C41: =Basic!C41 -> 0 | E41: =Basic!E41 -> 0 | G41: =Basic!G41 -> 0 | I41: =Basic!I41 -> 0 | K41: =Basic!K41 -> 0 | M41: =Basic!M41 -> 0 | O41: =Basic!O41 -> 0 | Q41: =Basic!Q41 -> 0 | S41: =Basic!S41 -> 0
A42: Other | C42: =Basic!C42 -> 0 | E42: =Basic!E42 -> 0 | G42: =Basic!G42 -> 0 | I42: =Basic!I42 -> 0 | K42: =Basic!K42 -> 0 | M42: =Basic!M42 -> 0 | O42: =Basic!O42 -> 0 | Q42: =Basic!Q42 -> 0 | S42: =Basic!S42 -> 0
A43: Total App. Nutrients | C43: =SUM(C38:D42) -> 0 | E43: =SUM(E38:F42) -> 0 | G43: =SUM(G38:H42) -> 0 | I43: =SUM(I38:J42) -> 0 | K43: =SUM(K38:L42) -> 0 | M43: =SUM(M38:N42) -> 0 | O43: =SUM(O38:P42) -> 0 | Q43: =SUM(Q38:R42) -> 0 | S43: =SUM(S38:T42) -> 0
A45: Total Nutrients | C45: =SUM(C43+H33) -> 0 | E45: =SUM(E43+J33) -> 0 | G45: =SUM(G43+L33) -> 0 | I45: =SUM(I43+H33) -> 0 | K45: =SUM(K43+J33) -> 0 | M45: =SUM(M43+L33) -> 0 | O45: =SUM(O43+H33) -> 0 | Q45: =SUM(Q43+J33) -> 0 | S45: =SUM(S43+L33) -> 0
A46: Nut. Balance | C46: =C45-H28 -> 0 | E46: =E45-J28 -> 0 | G46: =G45-L28 -> 0 | I46: =I45-H28 -> 0 | K46: =K45-J28 -> 0 | M46: =M45-L28 -> 0 | O46: =O45-H28 -> 0 | Q46: =Q45-J28 -> 0 | S46: =S45-L28 -> 0
A47: Notes: | C47: =Basic!C47 -> 0
A48: =Basic!A48 -> 0
A49: =Basic!A49 -> 0

Sheet Basic Certification (hidden)
A1: CPS 590 Nutrient Management - Nutrient Certification Worksheet
B3: Client Name: | E3: =Basic!E3 -> 0
B4: Field | D4: =Basic!D4 -> 0 | J4: Acres | L4: =Basic!L4 -> 0 | AB4: No Mitigating Activities Required.
B5: Basic | D5: =Basic!D5 -> 0 | F5: Zone | H5: =Basic!H5 -> 0 | J5: Grid | L5: =Basic!L5 -> 0 | N5: Sensor/VRA | Q5: =Basic!Q5 -> 0 | AB5: Delay nitrogen application until plants are actively growing (4” minimum height).
B6: Soil Erosion Below T (Y/N) | G6: =Basic!G6 -> 0 | J6: Type of Crop | M6: =Basic!M6 -> 0 | AB6: Apply split applications of 50% of the total nitrogen needs.
AB7: Seasonal nitrogen requirements for actively growing plants shall be split to provide no more than 40 lbs of actual nitrogen every 4-6 weeks. Warm season plants – apply <40 lbs/acre Nitrogen during early spring (green up), after first cutting or grazing (late May - early June), or late summer. Cool season plants - apply <40 lbs/ac in the fall at planting. Add the remaining recommended amount in the early spring (Feb-March).
A8: Nitrogen Risk Assessments | AB8: Nitrogen will not be applied during expected heavy rainfall months (April, May, and June) on warm season plants.
A9: Leaching Index: | D9: =Basic!D9 -> 0 | H9: Groundwater Vulnerability Rating: | N9: =Basic!N9 -> 0 | AB9: Lower realistic yield expectation by 25%.
A10: Rating: | D10: =Basic!D10 -> 0 | H10: No. of Mitigating Activities: | N10: =Basic!N10 -> 0 | AB10: Use enhanced efficiency fertilizer products (sulfur coated urea products, polymer coated fertilizers, uncoated slow release fertilizers).
A11: Mitigating Activities | D11: =Basic!D11 -> 0 | AB11: Utilize nitrogen rich strip and GreenSeeker sensors to make mid-season nitrogen applications.
A12: =Basic!A12 -> 0 | AB12: Use precision agricultural technologies to precisely apply variable rates of nitrogen fertilizer.
A13: =Basic!A13 -> 0 | AB13: Utilize annual soil testing.
A14: =Basic!A14 -> 0 | AB14: Banding nitrogen applications.
AB15: Use legume crops and cover crops to provide nitrogen through biological fixation and nutrient recycling.
A16: Phosphorus Risk Assessment
A17: Soil Test P Index: | F17: =Basic!F17 -> 0 | I17: Rate: (Full, Half, Removal, None) | O17: =Basic!O17 -> 0
A18: Rating: Low, Mod, High | F18: =Basic!F18 -> 0 | I18: P2O5 Application Rate Allowed: | O18: =Basic!O18 -> 0
A20: Manure or Organic Analysis
A21: Manure Source: | D21: =Basic!D21 -> 0 | O21: Analysis Date: | R21: =Basic!R21 -> 00:00:00
A22: Manure Analysis (N, P, K, EC) | G22: N | H22: =Basic!H22 -> 0 | J22: P | K22: =Basic!K22 -> 0 | M22: K | N22: =Basic!N22 -> 0 | P22: EC | Q22: =Basic!Q22 -> 0
A24: Soil Test Data
A25: Soil Test Date: | D25: =Basic!D25 -> 00:00:00 | J25: Yield Goal | M25: =Basic!M25 -> 0
A26: Melich 3 used (Y/N) | E26: =Basic!E26 -> 0 | H26: N | J26: P | L26: K | N26: pH | P26: EC | R26: BI
A27: Soil Test Results | H27: =Basic!H27 -> 0 | J27: 40 | L27: =Basic!L27 -> 0 | N27: =Basic!N27 -> 0 | P27: =Basic!P27 -> 0 | R27: =Basic!R27 -> 0
A28: Nutrient Recs to meet Yield Goal | H28: =Basic!H28 -> 0 | J28: 20 | L28: =Basic!L28 -> 0 | N28: =Basic!N28 -> 0
A29: Credits | B29: Previous legume crops residual | H29: =Basic!H29 -> 0 | J29: =Basic!J29 -> 0 | L29: =Basic!L29 -> 0
B30: Residual manure or other | H30: =Basic!H30 -> 0 | J30: =Basic!J30 -> 0 | L30: =Basic!L30 -> 0
B31: Irrigation water | H31: =Basic!H31 -> 0 | J31: =Basic!J31 -> 0 | L31: =Basic!L31 -> 0
B32: Other | H32: =Basic!H32 -> 0 | J32: =Basic!J32 -> 0 | L32: =Basic!L32 -> 0
B33: Total Credits | H33: =SUM(H27+H29+H30+H31+H32) -> 0 | J33: =SUM(J29:K32) -> 0 | L33: =SUM(L29:M32) -> 0
A35: Nutrient Application (actual nutrients)
C36: Benchmark System | I36: Planned Application | O36: Actual Applied
C37: N | E37: P | G37: K | I37: N | K37: P | M37: K | O37: N | Q37: P | S37: K
A38: Preplant | C38: =Basic!C38 -> 0 | E38: =Basic!E38 -> 0 | G38: =Basic!G38 -> 0
A39: Starter | C39: =Basic!C39 -> 0 | E39: =Basic!E39 -> 0 | G39: =Basic!G39 -> 0 | I39: 12 | K39: 30 | M39: 0
A40: In season | C40: =Basic!C40 -> 0 | E40: =Basic!E40 -> 0 | G40: =Basic!G40 -> 0 | I40: 73 | K40: 0 | M40: 0 | O40: 85 | Q40: 20 | S40: 0
A41: Manure | C41: =Basic!C41 -> 0 | E41: =Basic!E41 -> 0 | G41: =Basic!G41 -> 0
A42: Other | C42: =Basic!C42 -> 0 | E42: =Basic!E42 -> 0 | G42: =Basic!G42 -> 0
A43: Total App. Nutrients | C43: =SUM(C38:D42) -> 0 | E43: =SUM(E38:F42) -> 0 | G43: =SUM(G38:H42) -> 0 | I43: =SUM(I38:J42) -> 85 | K43: =SUM(K38:L42) -> 30 | M43: =SUM(M38:N42) -> 0 | O43: =SUM(O38:P42) -> 85 | Q43: =SUM(Q38:R42) -> 20 | S43: =SUM(S38:T42) -> 0
A45: Total Nutrients | C45: =SUM(C43+H33) -> 0 | E45: =SUM(E43+J33) -> 0 | G45: =SUM(G43+L33) -> 0 | I45: =SUM(I43+H33) -> 85 | K45: =SUM(K43+J33) -> 30 | M45: =SUM(M43+L33) -> 0 | O45: =SUM(O43+H33) -> 85 | Q45: =SUM(Q43+J33) -> 20 | S45: =SUM(S43+L33) -> 0
A46: Nut. Balance | C46: =C45-H28 -> 0 | E46: =E45-J28 -> -20 | G46: =G45-L28 -> 0 | I46: =I45-H28 -> 85 | K46: =K45-J28 -> 10 | M46: =M45-L28 -> 0 | O46: =O45-H28 -> 85 | Q46: =Q45-J28 -> 0 | S46: =S45-L28 -> 0
A47: Notes:
A50: Planned By: | O50: Date:
A52: Certified By: | O52: Date:

Sheet Sensor Based Certification (hidden)
A1: N Rich Strips or VRA using NDVI Sensors
A2: Must be completed with Basic Soil Sampling, Zone, or Grid Sampling for P, K, and pH.
A3: Producer may submit OSU N Rich Strip form to document.
B5: Client Name: | E5: =Basic!E3 -> 0
B6: Field | D6: =Basic!D4 -> 0 | J6: Acres | L6: =Basic!L4 -> 0
A8: Maximum Yield you would expect:
A9: How would you normally topdress this field?
A10: Will this field be grazed? Y, N, or Maybe
A12: Soil Test Results
A13: Date: | C13: =Basic!D25 -> 00:00:00 | G13: pH: | H13: =Basic!N27 -> 0 | L13: Buffer Index: | O13: =Basic!R27 -> 0
A14: N | C14: =Basic!H27 -> 0 | G14: P | H14: =Basic!J27 -> 0 | L14: K | O14: =Basic!L27 -> 0
A16: Preplant or Starter Fertilizer applied: | I16: N Rich Strip Applied
A17: Date: | I17: Date:
A18: lbs/ac | I18: lbs/ac
A19: N | I19: N
A20: P
A21: K
A23: GreenSeeker Readings
A24: Date:
A25: YPO NDVI:
A26: RI:
A27: YPO Yield:
A28: YP Max Yield:
A29: Topdress N Reccomendations
A30: Actual Topdress Applied:
A31: Yield:
A33: Certified by: | N33: Date:

Sheet Zone or Grid Certification (hidden)
A1: Zone or Grid Management
A2: Minimum of three (3) management zones for N, P, K, and pH.
B4: Client Name: | E4: =Basic!E3 -> 0
B5: Field | D5: =Basic!D4 -> 0 | J5: Acres | L5: =Basic!L4 -> 0
A7: How management zones were established? Soil type, terrain, EC map, yield maps, etc
A12: Zones or grid establishment date
A13: Date of last Yield Map
A14: Date of Sampling
B16: Zone | H16: Zone | N16: Zone
B17: Yield Goal | H17: Yield Goal | N17: Yield Goal
B18: Test Results | D18: Reccs. | F18: Applied | H18: Test Results | J18: Reccs. | L18: Applied | N18: Test Results | P18: Reccs. | R18: Applied
A19: Date:
A20: pH:
A21: BI:
A22: N
A23: P
A24: K
A26: If more than 3 zones/grids are established, select the lowest, highest, and one average zone/grid. Attach any supporting documents such as maps of sampling, yield, EC, or others as neccessry.
A29: Notes:
A36: Certified by: | N36: Date:

Sheet P WORKSHEET
A1: OKLAHOMA PHOSPHORUS ASSESSMENT WORKSHEET | L1: Apply at Full Rate | M1: Apply up to the following rates of P2O5 annually not to exceed the Nitrogen requirement of the crop: Application of up to 200 lbs/ac P2O5 when surface applied. Application of up to 300 lbs/ac P2O5 when applied through sprinkler irrigation and managed to prevent runoff.
A2: Client Name: | D2: Field(s): | F2: Date: | L2: Half Rate | M2: Apply up to the following rates of P2O5 annually not to exceed the Nitrogen requirement of the crop: Application of up to 100 lbs/ac P2O5 when surface applied. Application of up to 150 lbs/ac P2O5 when applied through sprinkler irrigation and managed to prevent runoff.
A3: Planner: | D3: Location: | F3: Crop: | G3: Grass | J3: Crop
A4: Land Use: | B4: Crop | E4: Ctrl + Shift + C clears worksheet | J4: Hay | L4: Split Rate | M4: Application will be no more than 1/2 the maximum allowed P2O5 rate per application at least 30 days apart and total application will not exceed nitrogen requirement of the crop
A5: Site Characteristics | J5: Pasture
A6: Soil Test P Index Mehlich III (lbs./ac) | B6: 210 | G6: =IF(B6>0,"","Missing data") -> 
A7: Application Method | B7: Surface applied during the growing season | E7: Surface applied on frozen, snow covered, or water saturated ground | L7: Apply at P2O5 Removal | M7: Application will be no more than the expected P2O5 crop removal rate based on Table 5 and a realistic yield goal.
B8: x | G8: =IF(AND(B8="",E8=""),"Missing data",IF(AND(B8<>"",E8<>""),"Input Error",IF(OR(B8="X",E8="X"),"","Invalid data"))) ->  | L8: No Application | M8: No manure application
A9: Land Slope % | B9: 0 - 8 % | D9: 8.1 - 15 % | F9: > 15.1 % | M9: On occasionally flooded soils, application may be made between June 20 through September 20. Application may also be made between February 1 through April 20 on established cool season grasses with at least 4 inches of height. In no case will manure be applied when the soil is water saturated or when ponding has occurred on the soil surface after periods of heavy rain.
B10: x | G10: =IF(AND(B10="",D10="",F10=""),"Missing data",IF(AND(B10<>"",D10<>"",F10<>""),"Input Error",IF(AND(B10<>"",D10<>""),"Input Error",IF(AND(D10<>"",F10<>""),"Input Error",IF(AND(B10<>"",F10<>""),"Input Error",IF(OR(B10="X",D10="X",F10="X"),"","Invalid data")))))) -> 
A11: Transport Characteristics
A12: Erosion Rate Greater Than "T" | B12: No | D12: Yes
B13: x | G13: =IF(AND(B13="",D13=""),"Missing data",IF(AND(B13<>"",D13<>""),"Input Error",IF(OR(B13="X",D13="X"),"","Invalid data"))) ->  | L13: Crop | M13: Minimum of 30 ft. grass buffer or filter strip exists between the crop and the transition to water bodies. | R13: Buffer strip is less than 30 feet or does not exist
A14: Flooding Frequency | B14: None | D14: Occasionally | F14: Frequently | L14: Hay | M14: Hay is transported offset and is not fed in the same field as baled | R14: Hay is fed in the same field during dormant season.
B15: x | G15: =IF(AND(B15="",D15="",F15=""),"Missing data",IF(AND(B15<>"",D15<>"",F15<>""),"Input Error",IF(AND(B15<>"",D15<>""),"Input Error",IF(AND(D15<>"",F15<>""),"Input Error",IF(AND(B15<>"",F15<>""),"Input Error",IF(OR(B15="X",D15="X",F15="X"),"","Invalid data")))))) ->  | L15: Pasture | M15: Pasture consists of 1.perennial vegetative cover > 80% with no more than 5% bare ground 2. Grazed evenly with minimal overgrazing 3. Livestock concentration areas are more than 100 feet to surface water and less than 0.1 acre 4.. Compaction is minor, 5. Erosion from sheet and rill and wind is minimal, gullies are stable with vegetative cover. | R15: One or more of the conditions is not met.
A16: Landuse Management | B16: =IF(A17="Crop",M13,IF(A17="Hay",M14,IF(A17="Pasture",M15,""))) -> Minimum of 30 ft. grass buffer or filter strip exists between the crop and the transition to water bodies. | E16: =IF(A17="Crop",R13,IF(A17="Hay",R14,IF(A17="Pasture",R15,""))) -> Buffer strip is less than 30 feet or does not exist | G16: =IF(OR(A17="crop",A17="hay",A17="pasture"),"","Missing Data") -> 
A17: =IF(OR(B4="Missing Data",B4=""),"",B4) -> Crop | B17: x | G17: =IF(AND(B17="",E17=""),"Missing data",IF(AND(B17<>"",E17<>""),"Input Error",IF(OR(B17="X",E17="X"),"","Invalid data"))) -> 
A18: Distance of Manure Application to Perennial Stream, Pond, Well, Sinkhole, or Residence | B18: > 100 ft. to perennial stream, pond, well, sinkhole or a buffer strip is established. Liquid Manure Applications > 300 ft. to Drinking Water Well and > 500 ft. to an Occupied Residence | E18: < 100 ft. to perennial stream, pond, well, or sinkhole Liquid Manure Applications < 300 ft. to Drinking Water Well or < 500 ft. to an Occupied Residence
B19: x | G19: =IF(AND(B19="",E19=""),"Missing data",IF(AND(B19<>"",E19<>""),"Input Error",IF(OR(B19="X",E19="X"),"","Invalid data"))) -> 
A20: Distance of Manure Application to Intermittent Stream | B20: > 50 ft. or a Buffer Strip is Established | E20: < 50 ft.
B21: x | G21: =IF(AND(B21="",E21=""),"Missing data",IF(AND(B21<>"",E21<>""),"Input Error",IF(OR(B21="X",E21="X"),"","Invalid data"))) -> 
A22: Depth of Soil | B22: > 20.1 in. | D22: 10.1 - 20 in. | F22: 0 - 10 in.
B23: x | G23: =IF(AND(B23="",D23="",F23=""),"Missing data",IF(AND(B23<>"",D23<>"",F23<>""),"Input Error",IF(AND(B23<>"",D23<>""),"Input Error",IF(AND(D23<>"",F23<>""),"Input Error",IF(AND(B23<>"",F23<>""),"Input Error",IF(OR(B23="X",D23="X",F23="X"),"","Invalid data")))))) -> 
A24: Rocks 3" - 10" in diameter and exceed 50% of the soil surface | B24: No | E24: Yes
B25: x | G25: =IF(AND(B25="",E25=""),"Missing data",IF(AND(B25<>"",E25<>""),"Input Error",IF(OR(B25="X",E25="X"),"","Invalid data"))) -> 
A26: Rocks > 10" in diameter and exceed 25% of the soil surface | B26: No | E26: Yes
B27: x | G27: =IF(AND(B27="",E27=""),"Missing data",IF(AND(B27<>"",E27<>""),"Input Error",IF(OR(B27="X",E27="X"),"","Invalid data"))) -> 
A28: Rocks > 10" in diameter which cover > 3% of the soil surface | B28: No | E28: Yes
B29: x | G29: =IF(AND(B29="",E29=""),"Missing data",IF(AND(B29<>"",E29<>""),"Input Error",IF(OR(B29="X",E29="X"),"","Invalid data"))) -> 
A30: Manure Application Rates | M30: =IF(M31<>"",M31,IF(M32<>"",M32,IF(M33<>"",M33,""))) -> Low Risk | N30: =IF(N31<>"",N31,IF(N32<>"",N32,IF(N33<>"",N33,""))) -> Apply up to the following rates of P2O5 annually not to exceed the Nitrogen requirement of the crop: Application of up to 200 lbs/ac P2O5 when surface applied. Application of up to 300 lbs/ac P2O5 when applied through sprinkler irrigation and managed to prevent runoff. | O30: =IF(OR(O31<>"",O32<>""),M9,"") -> 
A31: =IF(OR(G11<>"",G6<>"",G8<>"",G10<>"",G13<>"",G15<>"",G16<>"",G17<>"",G19<>"",G21<>"",G23<>"",G25<>"",G27<>"",G29<>""),"",IF(OR(E8="X",F10="X",D13="X",F15="X",E19="X",E21="X",F23="X",E25="X",E27="X"),"No Application",IF(AND(E29="X",D10="x"),"No Application",IF(B6<="",M30,"")))) -> Low Risk | B31: =IF(OR(G11<>"",G6<>"",G8<>"",G10<>"",G13<>"",G15<>"",G17<>"",G19<>"",G21<>"",G23<>"",G25<>"",G27<>"",G29<>""),"Incomplete data or invalid data has been entered",IF(B6<=120,"Low STP",IF(B6<=300,"Moderate STP",IF(B6>=301,"High STP","")))) -> Moderate STP | C31: =N30 -> Apply up to the following rates of P2O5 annually not to exceed the Nitrogen requirement of the crop: Application of up to 200 lbs/ac P2O5 when surface applied. Application of up to 300 lbs/ac P2O5 when applied through sprinkler irrigation and managed to prevent runoff. | M31: =IF(B31="Low STP", "Low Risk","") ->  | N31: =IF(AND(B31="Low STP",A31="Low Risk",D23="X"),M2,IF(AND(B31="Moderate STP",A31="Low Risk",D10="x"),M2,IF(A31="No Application",M8,IF(B31="Low STP",M1,"")))) ->  | O31: =IF(AND(A31="Low Risk",D15="x"),M9,"") -> 
C32: =IF(AND(A31="Low Risk",D10="x"),M4,IF(AND(A31="Low Risk",B31="Moderate STP"),M4,"")) -> Application will be no more than 1/2 the maximum allowed P2O5 rate per application at least 30 days apart and total application will not exceed nitrogen requirement of the crop | M32: =IF(AND(B31="Moderate STP",B10="x",B17="x",B23="x"),"Low Risk",IF(AND(B31="Moderate STP",D10="X",B17="x",B23="x"),"Low Risk",IF(B31="Moderate STP","Moderate Risk",""))) -> Low Risk | N32: =IF(AND(B31="Moderate STP",A31="Low Risk",D10="X",B17="x"),M3,IF(AND(B31="Moderate STP",A31="Low Risk",B17="x"),M1,IF(A31="Moderate Risk",M7,IF(B31="Moderate STP",M7,"")))) -> Apply up to the following rates of P2O5 annually not to exceed the Nitrogen requirement of the crop: Application of up to 200 lbs/ac P2O5 when surface applied. Application of up to 300 lbs/ac P2O5 when applied through sprinkler irrigation and managed to prevent runoff. | O32: =IF(AND(A31="Moderate Risk",D15="x"),M9,"") ->  | P32: =IF(AND(B31="Moderate Risk",E15="x"),N9,"") -> 
C33: =O30 ->  | M33: =IF(AND(B31="High STP",B10="x"),"Moderate Risk",IF(B31="High STP","High Risk","")) ->  | N33: =IF(AND(B31="High STP",A31="Moderate Risk"),M7,IF(A31="High Risk",M8,"")) -> 
C34: =IF(C9="no",IF(A34="","",IF(OR(B34="No application"),"No application",IF(OR(B34="Apply at half rate"),L11,IF(OR(B34="Apply at full rate"),L6,IF(OR(B34="Apply at full rate with split applications"),L6,IF(A34="Very High Risk","Application will be based on plant needs of Phosphorus (P2O5) only","")))))),"") -> 
C36: =IF(C11="no",IF(A36="","",IF(OR(B36="No application"),"No application",IF(OR(B36="Apply at half rate"),L13,IF(OR(B36="Apply at full rate"),L8,IF(OR(B36="Apply at full rate with split applications"),L8,IF(A36="Very High Risk","Application will be based on plant needs of Phosphorus (P2O5) only","")))))),"") ->  | L36: Note: Sub-formula for cell B27 is in cell L33
L37: =IF(OR(E8="X",D13="X",F15="X",E19="X",E21="X",F23="X",E25="X",E27="X",E29="X"),"High Risk",IF(AND(B29="Moderate STP",D23="X"),"P2O5 Removal",IF(AND(B29="Moderate Rating",F10="X"),"No Application",IF(A31="Moderate Rating","Apply at P2O5 Removal",IF(AND(A31="Low Rating",D23="X"),"Apply at Half Rate",IF(AND(A31="Low Rating",D10="X"),"Apply at Full Rate Split Application",IF(A31="Low Rating","High Risk",""))))))) -> 
L39: Note: Sub-formula for cell B37 is in cell J18

Sheet Nitrogen Leaching Index (hidden)
B1: County | C1: Mapunit Symbol | D1: Component Name | E1: County Symbol | F1: Row | G1: Hydrologic Group | H1: Percolation Index | I1: Seasonal Index | J1: Nitrogen Leaching Index
A2: 1 | B2: Lincoln | C2: Ps | D2: Pulaski | E2: =+B2&" "&C2&" "&D2 -> Lincoln Ps Pulaski | F2: =+MATCH(E2,'NLI Data'!E$2:E$5954,0)+1 -> 3062 | G2: =+INDIRECT(ADDRESS(F2,6,,,R$13)) -> A | H2: =+INDIRECT(ADDRESS(F2,7,,,R$13)) -> 13 | I2: =+INDIRECT(ADDRESS(F2,8,,,R$13)) -> 0.64 | J2: =+INDIRECT(ADDRESS(F2,10,,,R$13)) -> 8.32
A3: 2 | E3: =+B3&" "&C3&" "&D3 ->  | F3: =+MATCH(E3,[1]State!E$2:E$5954,0)+1 ->  | G3: =+INDIRECT(ADDRESS(F3,6,,,R$13)) ->  | H3: =+INDIRECT(ADDRESS(F3,7,,,R$13)) ->  | I3: =+INDIRECT(ADDRESS(F3,8,,,R$13)) ->  | J3: =+INDIRECT(ADDRESS(F3,10,,,R$13)) -> 
A4: 3 | E4: =+B4&" "&C4&" "&D4 ->  | F4: =+MATCH(E4,[1]State!E$2:E$5954,0)+1 ->  | G4: =+INDIRECT(ADDRESS(F4,6,,,R$13)) ->  | H4: =+INDIRECT(ADDRESS(F4,7,,,R$13)) ->  | I4: =+INDIRECT(ADDRESS(F4,8,,,R$13)) ->  | J4: =+INDIRECT(ADDRESS(F4,10,,,R$13)) -> 
A6: Instructions: First select County from the dropdown list. Then the soil map unit symbol. Then the Soil Component name. The county symbol column what will be found in the data table. If "#N/A" is shown, then the county, map unit, and component combination do not exist.
A8: Notes: There are multiple componets of the same name within a county. The component name alone is not specific to data. The data is pulled by a combination of County, Symbol, and component to find the corresponding data. Currenlty the filter to eliminate duplicates is not working without deleting data thus duplicates are in the dropdown list.
Q11: Row = | R11: =+MATCH(R9,NLI [2]Data!C2:C256,0)+1 -> 
Q13: Sheet = | R13: NLI Data
B17: NLI Data
G18: Sy Drop down List | I18: Component Drop Down List
B19: Row Count 1 | C19: Return for RC1 | D19: County Match | E19: Symbol Match | F19: Component Lookup | H19: Row Count 2 | J19: Hydrologic Group | K19: Perc Ind | L19: Seas Index | M19: Adj NLI
A20: Row in State | B20: =MATCH(B2,[1]State!A2:A5954,0)+1 -> 3027 | C20: =+INDIRECT(ADDRESS($B20,1,,,$B$17)) -> Lincoln | D20: =IF($B$2=$C20,$B$2,FALSE) -> Lincoln | E20: =+INDIRECT(ADDRESS(B20,2,,,$B$17)) -> Bk | F20: =+D20&" "&E20 -> Lincoln Bk | G20: =IF($B$2=$C20,$E20,FALSE) -> Bk | H20: =+MATCH(F20,[1]State!C$2:C$5954,0)+1 -> 3027 | I20: =+INDIRECT(ADDRESS($H20,4,,,$B$17)) -> Grainola | J20: =+INDIRECT(ADDRESS($H20,6,,,$B$17)) -> D | K20: =+INDIRECT(ADDRESS($H20,7,,,$B$17)) -> 2.5 | L20: =+INDIRECT(ADDRESS($H20,8,,,$B$17)) -> 0.64 | M20: =+INDIRECT(ADDRESS($H20,10,,,$B$17)) -> 1.6 | N20: =I20 -> Grainola
A21: =+INDIRECT(ADDRESS($B21,1,,,$B$17)) -> Lincoln | B21: =B20+1 -> 3028 | C21: =+INDIRECT(ADDRESS($B21,1,,,$B$17)) -> Lincoln | D21: =IF($B$2=$C21,$B$2,FALSE) -> Lincoln | E21: =+INDIRECT(ADDRESS(B21,2,,,$B$17)) -> Bk | F21: =+D21&" "&E21 -> Lincoln Bk | G21: =IF($B$2=$C21,$E21,FALSE) -> Bk | H21: =+MATCH(F21,[1]State!C$2:C$5954,0)+1 -> 3027 | I21: Grainola | J21: D | K21: 2.5 | L21: 0.64 | M21: 1.6 | N21: =I21 -> Grainola
A22: =+INDIRECT(ADDRESS($B22,1,,,$B$17)) -> Lincoln | B22: =B21+1 -> 3029 | C22: Lincoln | D22: Lincoln | E22: BoB | F22: Lincoln BoB | G22: BoB | H22: =+MATCH(F22,[1]State!C$2:C$5954,0)+1 -> 3029 | I22: Seminole | J22: C | K22: 4.1 | L22: 0.64 | M22: 2.624 | N22: Seminole
A23: Lincoln | B23: 3030 | C23: Lincoln | D23: Lincoln | E23: BoC | F23: Lincoln BoC | G23: BoC | H23: =+MATCH(F23,[1]State!C$2:C$5954,0)+1 -> 3030 | I23: Seminole | J23: C | K23: 4.1 | L23: 0.64 | M23: 2.624 | N23: Seminole
A24: Lincoln | B24: 3031 | C24: Lincoln | D24: Lincoln | E24: BoC2 | F24: Lincoln BoC2 | G24: BoC2 | H24: =+MATCH(F24,[1]State!C$2:C$5954,0)+1 -> 3031 | I24: Seminole | J24: C | K24: 4.1 | L24: 0.64 | M24: 2.624 | N24: Seminole
A25: Lincoln | B25: 3032 | C25: Lincoln | D25: Lincoln | E25: Br | F25: Lincoln Br | G25: Br | H25: =+MATCH(F25,[1]State!C$2:C$5954,0)+1 -> 3032 | I25: Ashport | J25: B | K25: 7.4 | L25: 0.64 | M25: 4.736 | N25: Ashport
A26: Lincoln | B26: 3033 | C26: Lincoln | D26: Lincoln | E26: Br | F26: Lincoln Br | G26: Br | H26: =+MATCH(F26,[1]State!C$2:C$5954,0)+1 -> 3032 | I26: Ashport | J26: B | K26: 7.4 | L26: 0.64 | M26: 4.736 | N26: Ashport
A27: Lincoln | B27: 3034 | C27: Lincoln | D27: Lincoln | E27: Br | F27: Lincoln Br | G27: Br | H27: =+MATCH(F27,[1]State!C$2:C$5954,0)+1 -> 3032 | I27: Ashport | J27: B | K27: 7.4 | L27: 0.64 | M27: 4.736 | N27: Ashport
A28: Lincoln | B28: 3035 | C28: Lincoln | D28: Lincoln | E28: CaB | F28: Lincoln CaB | G28: CaB | H28: =+MATCH(F28,[1]State!C$2:C$5954,0)+1 -> 3035 | I28: Chickasha | J28: B | K28: 7.4 | L28: 0.64 | M28: 4.736 | N28: Chickasha
A29: Lincoln | B29: 3036 | C29: Lincoln | D29: Lincoln | E29: CaC | F29: Lincoln CaC | G29: CaC | H29: =+MATCH(F29,[1]State!C$2:C$5954,0)+1 -> 3036 | I29: Coyle | J29: C | K29: 4.1 | L29: 0.64 | M29: 2.624 | N29: Coyle
A30: Lincoln | B30: 3037 | C30: Lincoln | D30: Lincoln | E30: CaC2 | F30: Lincoln CaC2 | G30: CaC2 | H30: =+MATCH(F30,[1]State!C$2:C$5954,0)+1 -> 3037 | I30: Coyle | J30: C | K30: 4.1 | L30: 0.64 | M30: 2.624 | N30: Coyle
A31: Lincoln | B31: 3038 | C31: Lincoln | D31: Lincoln | E31: CbC3 | F31: Lincoln CbC3 | G31: CbC3 | H31: =+MATCH(F31,[1]State!C$2:C$5954,0)+1 -> 3038 | I31: Coyle | J31: C | K31: 4.1 | L31: 0.64 | M31: 2.624 | N31: Coyle
A32: Lincoln | B32: 3039 | C32: Lincoln | D32: Lincoln | E32: CbC3 | F32: Lincoln CbC3 | G32: CbC3 | H32: =+MATCH(F32,[1]State!C$2:C$5954,0)+1 -> 3038 | I32: Coyle | J32: C | K32: 4.1 | L32: 0.64 | M32: 2.624 | N32: Coyle
A33: Lincoln | B33: 3040 | C33: Lincoln | D33: Lincoln | E33: Cr | F33: Lincoln Cr | G33: Cr | H33: =+MATCH(F33,[1]State!C$2:C$5954,0)+1 -> 3040 | I33: Gaddy | J33: A | K33: 13 | L33: 0.64 | M33: 8.32 | N33: Gaddy
A34: Lincoln | B34: 3041 | C34: Lincoln | D34: Lincoln | E34: Da | F34: Lincoln Da | G34: Da | H34: =+MATCH(F34,[1]State!C$2:C$5954,0)+1 -> 3041 | I34: Dale | J34: B | K34: 7.4 | L34: 0.64 | M34: 4.736 | N34: Dale
A35: Lincoln | B35: 3042 | C35: Lincoln | D35: Lincoln | E35: DsE | F35: Lincoln DsE | G35: DsE | H35: =+MATCH(F35,[1]State!C$2:C$5954,0)+1 -> 3042 | I35: Darsil | J35: D | K35: 2.5 | L35: 0.64 | M35: 1.6 | N35: Darsil
A36: Lincoln | B36: 3043 | C36: Lincoln | D36: Lincoln | E36: DsE | F36: Lincoln DsE | G36: DsE | H36: =+MATCH(F36,[1]State!C$2:C$5954,0)+1 -> 3042 | I36: Darsil | J36: D | K36: 2.5 | L36: 0.64 | M36: 1.6 | N36: Darsil
A37: Lincoln | B37: 3044 | C37: Lincoln | D37: Lincoln | E37: DtE3 | F37: Lincoln DtE3 | G37: DtE3 | H37: =+MATCH(F37,[1]State!C$2:C$5954,0)+1 -> 3044 | I37: Darsil | J37: D | K37: 2.5 | L37: 0.64 | M37: 1.6 | N37: Darsil
A38: Lincoln | B38: 3045 | C38: Lincoln | D38: Lincoln | E38: DtE3 | F38: Lincoln DtE3 | G38: DtE3 | H38: =+MATCH(F38,[1]State!C$2:C$5954,0)+1 -> 3044 | I38: Darsil | J38: D | K38: 2.5 | L38: 0.64 | M38: 1.6 | N38: Darsil
A39: Lincoln | B39: 3046 | C39: Lincoln | D39: Lincoln | E39: DuD | F39: Lincoln DuD | G39: DuD | H39: =+MATCH(F39,[1]State!C$2:C$5954,0)+1 -> 3046 | I39: Dougherty | J39: B | K39: 7.4 | L39: 0.64 | M39: 4.736 | N39: Dougherty
A40: Lincoln | B40: 3047 | C40: Lincoln | D40: Lincoln | E40: EdE | F40: Lincoln EdE | G40: EdE | H40: =+MATCH(F40,[1]State!C$2:C$5954,0)+1 -> 3047 | I40: Dougherty | J40: B | K40: 7.4 | L40: 0.64 | M40: 4.736 | N40: Dougherty
A41: Lincoln | B41: 3048 | C41: Lincoln | D41: Lincoln | E41: EdE | F41: Lincoln EdE | G41: EdE | H41: =+MATCH(F41,[1]State!C$2:C$5954,0)+1 -> 3047 | I41: Dougherty | J41: B | K41: 7.4 | L41: 0.64 | M41: 4.736 | N41: Dougherty
A42: Lincoln | B42: 3049 | C42: Lincoln | D42: Lincoln | E42: KnA | F42: Lincoln KnA | G42: KnA | H42: =+MATCH(F42,[1]State!C$2:C$5954,0)+1 -> 3049 | I42: Kirkland | J42: D | K42: 2.5 | L42: 0.64 | M42: 1.6 | N42: Kirkland
A43: Lincoln | B43: 3050 | C43: Lincoln | D43: Lincoln | E43: KoB | F43: Lincoln KoB | G43: KoB | H43: =+MATCH(F43,[1]State!C$2:C$5954,0)+1 -> 3050 | I43: Konawa | J43: B | K43: 7.4 | L43: 0.64 | M43: 4.736 | N43: Konawa
A44: Lincoln | B44: 3051 | C44: Lincoln | D44: Lincoln | E44: KoD3 | F44: Lincoln KoD3 | G44: KoD3 | H44: =+MATCH(F44,[1]State!C$2:C$5954,0)+1 -> 3051 | I44: Konawa | J44: B | K44: 7.4 | L44: 0.64 | M44: 4.736 | N44: Konawa
A45: Lincoln | B45: 3052 | C45: Lincoln | D45: Lincoln | E45: Lc | F45: Lincoln Lc | G45: Lc | H45: =+MATCH(F45,[1]State!C$2:C$5954,0)+1 -> 3052 | I45: Lela | J45: D | K45: 2.5 | L45: 0.64 | M45: 1.6 | N45: Lela
A46: Lincoln | B46: 3053 | C46: Lincoln | D46: Lincoln | E46: Ma | F46: Lincoln Ma | G46: Ma | H46: =+MATCH(F46,[1]State!C$2:C$5954,0)+1 -> 3053 | I46: Lawrie | J46: B | K46: 7.4 | L46: 0.64 | M46: 4.736 | N46: Lawrie
A47: Lincoln | B47: 3054 | C47: Lincoln | D47: Lincoln | E47: Mc | F47: Lincoln Mc | G47: Mc | H47: =+MATCH(F47,[1]State!C$2:C$5954,0)+1 -> 3054 | I47: Miller | J47: D | K47: 2.5 | L47: 0.64 | M47: 1.6 | N47: Miller
A48: Lincoln | B48: 3055 | C48: Lincoln | D48: Lincoln | E48: NbD | F48: Lincoln NbD | G48: NbD | H48: =+MATCH(F48,[1]State!C$2:C$5954,0)+1 -> 3055 | I48: Harrah | J48: B | K48: 7.4 | L48: 0.64 | M48: 4.736 | N48: Harrah
A49: Lincoln | B49: 3056 | C49: Lincoln | D49: Lincoln | E49: NoB | F49: Lincoln NoB | G49: NoB | H49: =+MATCH(F49,[1]State!C$2:C$5954,0)+1 -> 3056 | I49: Norge | J49: B | K49: 7.4 | L49: 0.64 | M49: 4.736 | N49: Norge
A50: Lincoln | B50: 3057 | C50: Lincoln | D50: Lincoln | E50: NoC | F50: Lincoln NoC | G50: NoC | H50: =+MATCH(F50,[1]State!C$2:C$5954,0)+1 -> 3057 | I50: Norge | J50: B | K50: 7.4 | L50: 0.64 | M50: 4.736 | N50: Norge
A51: Lincoln | B51: 3058 | C51: Lincoln | D51: Lincoln | E51: NoC2 | F51: Lincoln NoC2 | G51: NoC2 | H51: =+MATCH(F51,[1]State!C$2:C$5954,0)+1 -> 3058 | I51: Norge | J51: C | K51: 4.1 | L51: 0.64 | M51: 2.624 | N51: Norge
A52: Lincoln | B52: 3059 | C52: Lincoln | D52: Lincoln | E52: Pc | F52: Lincoln Pc | G52: Pc | H52: =+MATCH(F52,[1]State!C$2:C$5954,0)+1 -> 3059 | I52: Ashport | J52: B | K52: 7.4 | L52: 0.64 | M52: 4.736 | N52: Ashport
A53: Lincoln | B53: 3060 | C53: Lincoln | D53: Lincoln | E53: Pf | F53: Lincoln Pf | G53: Pf | H53: =+MATCH(F53,[1]State!C$2:C$5954,0)+1 -> 3060 | I53: Port | J53: B | K53: 7.4 | L53: 0.64 | M53: 4.736 | N53: Port
A54: Lincoln | B54: 3061 | C54: Lincoln | D54: Lincoln | E54: Po | F54: Lincoln Po | G54: Po | H54: =+MATCH(F54,[1]State!C$2:C$5954,0)+1 -> 3061 | I54: Pulaski | J54: A | K54: 13 | L54: 0.64 | M54: 8.32 | N54: Pulaski
A55: Lincoln | B55: 3062 | C55: Lincoln | D55: Lincoln | E55: Ps | F55: Lincoln Ps | G55: Ps | H55: =+MATCH(F55,[1]State!C$2:C$5954,0)+1 -> 3062 | I55: Pulaski | J55: A | K55: 13 | L55: 0.64 | M55: 8.32 | N55: Pulaski
A56: Lincoln | B56: 3063 | C56: Lincoln | D56: Lincoln | E56: Pw | F56: Lincoln Pw | G56: Pw | H56: =+MATCH(F56,[1]State!C$2:C$5954,0)+1 -> 3063 | I56: Tribbey | J56: B | K56: 7.4 | L56: 0.64 | M56: 4.736 | N56: Tribbey
A57: Lincoln | B57: 3064 | C57: Lincoln | D57: Lincoln | E57: ReB | F57: Lincoln ReB | G57: ReB | H57: =+MATCH(F57,[1]State!C$2:C$5954,0)+1 -> 3064 | I57: Renthin | J57: D | K57: 2.5 | L57: 0.64 | M57: 1.6 | N57: Renthin
A58: Lincoln | B58: 3065 | C58: Lincoln | D58: Lincoln | E58: ReC | F58: Lincoln ReC | G58: ReC | H58: =+MATCH(F58,[1]State!C$2:C$5954,0)+1 -> 3065 | I58: Renthin | J58: D | K58: 2.5 | L58: 0.64 | M58: 1.6 | N58: Renthin
A59: Lincoln | B59: 3066 | C59: Lincoln | D59: Lincoln | E59: RfC2 | F59: Lincoln RfC2 | G59: RfC2 | H59: =+MATCH(F59,[1]State!C$2:C$5954,0)+1 -> 3066 | I59: Renthin | J59: D | K59: 2.5 | L59: 0.64 | M59: 1.6 | N59: Renthin
A60: Lincoln | B60: 3067 | C60: Lincoln | D60: Lincoln | E60: RvC3 | F60: Lincoln RvC3 | G60: RvC3 | H60: =+MATCH(F60,[1]State!C$2:C$5954,0)+1 -> 3067 | I60: Renthin | J60: D | K60: 2.5 | L60: 0.64 | M60: 1.6 | N60: Renthin
A61: Lincoln | B61: 3068 | C61: Lincoln | D61: Lincoln | E61: RvC3 | F61: Lincoln RvC3 | G61: RvC3 | H61: =+MATCH(F61,[1]State!C$2:C$5954,0)+1 -> 3067 | I61: Renthin | J61: D | K61: 2.5 | L61: 0.64 | M61: 1.6 | N61: Renthin
A62: Lincoln | B62: 3069 | C62: Lincoln | D62: Lincoln | E62: Rx | F62: Lincoln Rx | G62: Rx | H62: =+MATCH(F62,[1]State!C$2:C$5954,0)+1 -> 3069 | I62: Ustibuck | J62: D | K62: 2.5 | L62: 0.64 | M62: 1.6 | N62: Ustibuck
A63: Lincoln | B63: 3070 | C63: Lincoln | D63: Lincoln | E63: StB | F63: Lincoln StB | G63: StB | H63: =+MATCH(F63,[1]State!C$2:C$5954,0)+1 -> 3070 | I63: Stephenville | J63: C | K63: 4.1 | L63: 0.64 | M63: 2.624 | N63: Stephenville
A64: Lincoln | B64: 3071 | C64: Lincoln | D64: Lincoln | E64: StC | F64: Lincoln StC | G64: StC | H64: =+MATCH(F64,[1]State!C$2:C$5954,0)+1 -> 3071 | I64: Stephenville | J64: C | K64: 4.1 | L64: 0.64 | M64: 2.624 | N64: Stephenville
A65: Lincoln | B65: 3072 | C65: Lincoln | D65: Lincoln | E65: StC2 | F65: Lincoln StC2 | G65: StC2 | H65: =+MATCH(F65,[1]State!C$2:C$5954,0)+1 -> 3072 | I65: Stephenville | J65: C | K65: 4.1 | L65: 0.64 | M65: 2.624 | N65: Stephenville
A66: Lincoln | B66: 3073 | C66: Lincoln | D66: Lincoln | E66: TeB | F66: Lincoln TeB | G66: TeB | H66: =+MATCH(F66,[1]State!C$2:C$5954,0)+1 -> 3073 | I66: Teller | J66: B | K66: 7.4 | L66: 0.64 | M66: 4.736 | N66: Teller
A67: Lincoln | B67: 3074 | C67: Lincoln | D67: Lincoln | E67: TeC | F67: Lincoln TeC | G67: TeC | H67: =+MATCH(F67,[1]State!C$2:C$5954,0)+1 -> 3074 | I67: Teller | J67: B | K67: 7.4 | L67: 0.64 | M67: 4.736 | N67: Teller
A68: Lincoln | B68: 3075 | C68: Lincoln | D68: Lincoln | E68: TeC2 | F68: Lincoln TeC2 | G68: TeC2 | H68: =+MATCH(F68,[1]State!C$2:C$5954,0)+1 -> 3075 | I68: Teller | J68: B | K68: 7.4 | L68: 0.64 | M68: 4.736 | N68: Teller
A69: Lincoln | B69: 3076 | C69: Lincoln | D69: Lincoln | E69: VaA | F69: Lincoln VaA | G69: VaA | H69: =+MATCH(F69,[1]State!C$2:C$5954,0)+1 -> 3076 | I69: Vanoss | J69: B | K69: 7.4 | L69: 0.64 | M69: 4.736 | N69: Vanoss
A70: Lincoln | B70: 3077 | C70: Lincoln | D70: Lincoln | E70: VaB | F70: Lincoln VaB | G70: VaB | H70: =+MATCH(F70,[1]State!C$2:C$5954,0)+1 -> 3077 | I70: Vanoss | J70: B | K70: 7.4 | L70: 0.64 | M70: 4.736 | N70: Vanoss
A71: Lincoln | B71: 3078 | C71: Lincoln | D71: Lincoln | E71: VaB2 | F71: Lincoln VaB2 | G71: VaB2 | H71: =+MATCH(F71,[1]State!C$2:C$5954,0)+1 -> 3078 | I71: Vanoss | J71: B | K71: 7.4 | L71: 0.64 | M71: 4.736 | N71: Vanoss
A72: Lincoln | B72: 3079 | C72: Lincoln | D72: Lincoln | E72: VcC | F72: Lincoln VcC | G72: VcC | H72: =+MATCH(F72,[1]State!C$2:C$5954,0)+1 -> 3079 | I72: Grainola | J72: D | K72: 2.5 | L72: 0.64 | M72: 1.6 | N72: Grainola
A73: Lincoln | B73: 3080 | C73: Lincoln | D73: Lincoln | E73: VeF | F73: Lincoln VeF | G73: VeF | H73: =+MATCH(F73,[1]State!C$2:C$5954,0)+1 -> 3080 | I73: Masham | J73: D | K73: 2.5 | L73: 0.64 | M73: 1.6 | N73: Masham
A74: Lincoln | B74: 3081 | C74: Lincoln | D74: Lincoln | E74: VeF | F74: Lincoln VeF | G74: VeF | H74: =+MATCH(F74,[1]State!C$2:C$5954,0)+1 -> 3080 | I74: Masham | J74: D | K74: 2.5 | L74: 0.64 | M74: 1.6 | N74: Masham
A75: Lincoln | B75: 3082 | C75: Lincoln | D75: Lincoln | E75: VlE | F75: Lincoln VlE | G75: VlE | H75: =+MATCH(F75,[1]State!C$2:C$5954,0)+1 -> 3082 | I75: Grainola | J75: D | K75: 2.5 | L75: 0.64 | M75: 1.6 | N75: Grainola
A76: Lincoln | B76: 3083 | C76: Lincoln | D76: Lincoln | E76: VlE | F76: Lincoln VlE | G76: VlE | H76: =+MATCH(F76,[1]State!C$2:C$5954,0)+1 -> 3082 | I76: Grainola | J76: D | K76: 2.5 | L76: 0.64 | M76: 1.6 | N76: Grainola
A77: Lincoln | B77: 3084 | C77: Lincoln | D77: Lincoln | E77: We | F77: Lincoln We | G77: We | H77: =+MATCH(F77,[1]State!C$2:C$5954,0)+1 -> 3084 | I77: Lebron | J77: D | K77: 2.5 | L77: 0.64 | M77: 1.6 | N77: Lebron
A78: Lincoln | B78: 3085 | C78: Lincoln | D78: Lincoln | E78: Yc | F78: Lincoln Yc | G78: Yc | H78: =+MATCH(F78,[1]State!C$2:C$5954,0)+1 -> 3085 | I78: Pocasset | J78: B | K78: 7.4 | L78: 0.64 | M78: 4.736 | N78: Pocasset
A79: Lincoln | B79: 3086 | C79: Lincoln | D79: Lincoln | E79: Yf | F79: Lincoln Yf | G79: Yf | H79: =+MATCH(F79,[1]State!C$2:C$5954,0)+1 -> 3086 | I79: Yahola | J79: A | K79: 13 | L79: 0.64 | M79: 8.32 | N79: Yahola
A80: Lincoln | B80: 3087 | C80: Lincoln | D80: Lincoln | E80: ZaC | F80: Lincoln ZaC | G80: ZaC | H80: =+MATCH(F80,[1]State!C$2:C$5954,0)+1 -> 3087 | I80: Zaneis | J80: B | K80: 7.4 | L80: 0.64 | M80: 4.736 | N80: Zaneis
A81: Lincoln | B81: 3088 | C81: Lincoln | D81: Lincoln | E81: ZaC2 | F81: Lincoln ZaC2 | G81: ZaC2 | H81: =+MATCH(F81,[1]State!C$2:C$5954,0)+1 -> 3088 | I81: Zaneis | J81: C | K81: 4.1 | L81: 0.64 | M81: 2.624 | N81: Zaneis
A82: Logan | B82: 3089 | C82: Logan | D82: FALSE | E82: AspA | F82: FALSE AspA | G82: FALSE | H82: =+MATCH(F82,[1]State!C$2:C$5954,0)+1 -> 
A83: Logan | B83: 3090 | C83: Logan | D83: FALSE | E83: AstA | F83: FALSE AstA | G83: FALSE | H83: =+MATCH(F83,[1]State!C$2:C$5954,0)+1 -> 
A84: Logan | B84: 3091 | C84: Logan | D84: FALSE | E84: BetA | F84: FALSE BetA | G84: FALSE | H84: =+MATCH(F84,[1]State!C$2:C$5954,0)+1 ->  | I84: =+INDIRECT(ADDRESS($H84,4,,,$B$17)) ->  | J84: =+INDIRECT(ADDRESS($H84,6,,,$B$17)) ->  | K84: =+INDIRECT(ADDRESS($H84,7,,,$B$17)) ->  | L84: =+INDIRECT(ADDRESS($H84,8,,,$B$17)) ->  | M84: =+INDIRECT(ADDRESS($H84,10,,,$B$17)) -> 
A85: Logan | B85: 3092 | C85: =+INDIRECT(ADDRESS($B85,1,,,$B$17)) -> Logan | D85: =IF($B$2=$C85,$B$2,FALSE) -> FALSE | E85: =+INDIRECT(ADDRESS(B85,2,,,$B$17)) -> BetB | F85: =+D85&" "&E85 -> FALSE BetB | G85: =IF($B$2=$C85,$E85,FALSE) -> FALSE | H85: =+MATCH(F85,[1]State!C$2:C$5954,0)+1 ->  | N85: =I85 -> 
A86: =+INDIRECT(ADDRESS($B86,1,,,$B$17)) -> Logan | B86: =B85+1 -> 3093 | C86: Logan | D86: FALSE | E86: BocA | F86: FALSE BocA | G86: FALSE | H86: =+MATCH(F86,[1]State!C$2:C$5954,0)+1 -> 
A87: Logan | B87: 3094 | C87: Logan | D87: FALSE | E87: BtlA | F87: FALSE BtlA | G87: FALSE | H87: =+MATCH(F87,[1]State!C$2:C$5954,0)+1 -> 
A88: Logan | B88: 3095 | C88: Logan | D88: FALSE | E88: CaaA | F88: FALSE CaaA | G88: FALSE | H88: =+MATCH(F88,[1]State!C$2:C$5954,0)+1 -> 
A89: Logan | B89: 3096 | C89: Logan | D89: FALSE | E89: CAID | F89: FALSE CAID | G89: FALSE | H89: =+MATCH(F89,[1]State!C$2:C$5954,0)+1 -> 
A90: Logan | B90: 3097 | C90: Logan | D90: FALSE | E90: CAID | F90: FALSE CAID | G90: FALSE | H90: =+MATCH(F90,[1]State!C$2:C$5954,0)+1 -> 
A91: Logan | B91: 3098 | C91: Logan | D91: FALSE | E91: CAID | F91: FALSE CAID | G91: FALSE | H91: =+MATCH(F91,[1]State!C$2:C$5954,0)+1 -> 
A92: Logan | B92: 3099 | C92: Logan | D92: FALSE | E92: CoIC2 | F92: FALSE CoIC2 | G92: FALSE | H92: =+MATCH(F92,[1]State!C$2:C$5954,0)+1 -> 
A93: Logan | B93: 3100 | C93: Logan | D93: FALSE | E93: CoIC2 | F93: FALSE CoIC2 | G93: FALSE | H93: =+MATCH(F93,[1]State!C$2:C$5954,0)+1 -> 
A94: Logan | B94: 3101 | C94: Logan | D94: FALSE | E94: CoUB | F94: FALSE CoUB | G94: FALSE | H94: =+MATCH(F94,[1]State!C$2:C$5954,0)+1 -> 
A95: Logan | B95: 3102 | C95: Logan | D95: FALSE | E95: CoUC | F95: FALSE CoUC | G95: FALSE | H95: =+MATCH(F95,[1]State!C$2:C$5954,0)+1 -> 
A96: Logan | B96: 3103 | C96: Logan | D96: FALSE | E96: CoyB | F96: FALSE CoyB | G96: FALSE | H96: =+MATCH(F96,[1]State!C$2:C$5954,0)+1 -> 
A97: Logan | B97: 3104 | C97: Logan | D97: FALSE | E97: CoyC2 | F97: FALSE CoyC2 | G97: FALSE | H97: =+MATCH(F97,[1]State!C$2:C$5954,0)+1 -> 
A98: Logan | B98: 3105 | C98: Logan | D98: FALSE | E98: CoZC3 | F98: FALSE CoZC3 | G98: FALSE | H98: =+MATCH(F98,[1]State!C$2:C$5954,0)+1 -> 
A99: Logan | B99: 3106 | C99: Logan | D99: FALSE | E99: CoZC3 | F99: FALSE CoZC3 | G99: FALSE | H99: =+MATCH(F99,[1]State!C$2:C$5954,0)+1 -> 
A100: Logan | B100: 3107 | C100: Logan | D100: FALSE | E100: DerB | F100: FALSE DerB | G100: FALSE | H100: =+MATCH(F100,[1]State!C$2:C$5954,0)+1 -> 
A101: Logan | B101: 3108 | C101: Logan | D101: FALSE | E101: DerD | F101: FALSE DerD | G101: FALSE | H101: =+MATCH(F101,[1]State!C$2:C$5954,0)+1 -> 
A102: Logan | B102: 3109 | C102: Logan | D102: FALSE | E102: DerE | F102: FALSE DerE | G102: FALSE | H102: =+MATCH(F102,[1]State!C$2:C$5954,0)+1 -> 
A103: Logan | B103: 3110 | C103: Logan | D103: FALSE | E103: DiRG | F103: FALSE DiRG | G103: FALSE | H103: =+MATCH(F103,[1]State!C$2:C$5954,0)+1 -> 
A104: Logan | B104: 3111 | C104: Logan | D104: FALSE | E104: DouB | F104: FALSE DouB | G104: FALSE | H104: =+MATCH(F104,[1]State!C$2:C$5954,0)+1 -> 
A105: Logan | B105: 3112 | C105: Logan | D105: FALSE | E105: DouD | F105: FALSE DouD | G105: FALSE | H105: =+MATCH(F105,[1]State!C$2:C$5954,0)+1 -> 
A106: Logan | B106: 3113 | C106: Logan | D106: FALSE | E106: EasA | F106: FALSE EasA | G106: FALSE | H106: =+MATCH(F106,[1]State!C$2:C$5954,0)+1 -> 
A107: Logan | B107: 3114 | C107: Logan | D107: FALSE | E107: GadA | F107: FALSE GadA | G107: FALSE | H107: =+MATCH(F107,[1]State!C$2:C$5954,0)+1 -> 
A108: Logan | B108: 3115 | C108: Logan | D108: FALSE | E108: GaGA | F108: FALSE GaGA | G108: FALSE | H108: =+MATCH(F108,[1]State!C$2:C$5954,0)+1 -> 
A109: Logan | B109: 3116 | C109: Logan | D109: FALSE | E109: GaGA | F109: FALSE GaGA | G109: FALSE | H109: =+MATCH(F109,[1]State!C$2:C$5954,0)+1 -> 
A110: Logan | B110: 3117 | C110: Logan | D110: FALSE | E110: GMGE4 | F110: FALSE GMGE4 | G110: FALSE | H110: =+MATCH(F110,[1]State!C$2:C$5954,0)+1 -> 
A111: Logan | B111: 3118 | C111: Logan | D111: FALSE | E111: GMGE4 | F111: FALSE GMGE4 | G111: FALSE | H111: =+MATCH(F111,[1]State!C$2:C$5954,0)+1 -> 
A112: Logan | B112: 3119 | C112: Logan | D112: FALSE | E112: GMLG | F112: FALSE GMLG | G112: FALSE | H112: =+MATCH(F112,[1]State!C$2:C$5954,0)+1 -> 
A113: Logan | B113: 3120 | C113: Logan | D113: FALSE | E113: GMLG | F113: FALSE GMLG | G113: FALSE | H113: =+MATCH(F113,[1]State!C$2:C$5954,0)+1 -> 
A114: Logan | B114: 3121 | C114: Logan | D114: FALSE | E114: GMLG | F114: FALSE GMLG | G114: FALSE | H114: =+MATCH(F114,[1]State!C$2:C$5954,0)+1 -> 
A115: Logan | B115: 3122 | C115: Logan | D115: FALSE | E115: GohC | F115: FALSE GohC | G115: FALSE | H115: =+MATCH(F115,[1]State!C$2:C$5954,0)+1 -> 
A116: Logan | B116: 3123 | C116: Logan | D116: FALSE | E116: GohE | F116: FALSE GohE | G116: FALSE | H116: =+MATCH(F116,[1]State!C$2:C$5954,0)+1 -> 
A117: Logan | B117: 3124 | C117: Logan | D117: FALSE | E117: GooE | F117: FALSE GooE | G117: FALSE | H117: =+MATCH(F117,[1]State!C$2:C$5954,0)+1 -> 
A118: Logan | B118: 3125 | C118: Logan | D118: FALSE | E118: GooG | F118: FALSE GooG | G118: FALSE | H118: =+MATCH(F118,[1]State!C$2:C$5954,0)+1 -> 
A119: Logan | B119: 3126 | C119: Logan | D119: FALSE | E119: GraC | F119: FALSE GraC | G119: FALSE | H119: =+MATCH(F119,[1]State!C$2:C$5954,0)+1 -> 
A120: Logan | B120: 3127 | C120: Logan | D120: FALSE | E120: GraD2 | F120: FALSE GraD2 | G120: FALSE | H120: =+MATCH(F120,[1]State!C$2:C$5954,0)+1 -> 
A121: Logan | B121: 3128 | C121: Logan | D121: FALSE | E121: GrHC | F121: FALSE GrHC | G121: FALSE | H121: =+MATCH(F121,[1]State!C$2:C$5954,0)+1 -> 
A122: Logan | B122: 3129 | C122: Logan | D122: FALSE | E122: GrHC | F122: FALSE GrHC | G122: FALSE | H122: =+MATCH(F122,[1]State!C$2:C$5954,0)+1 -> 
A123: Logan | B123: 3130 | C123: Logan | D123: FALSE | E123: GrIE | F123: FALSE GrIE | G123: FALSE | H123: =+MATCH(F123,[1]State!C$2:C$5954,0)+1 -> 
A124: Logan | B124: 3131 | C124: Logan | D124: FALSE | E124: GrIE | F124: FALSE GrIE | G124: FALSE | H124: =+MATCH(F124,[1]State!C$2:C$5954,0)+1 -> 
A125: Logan | B125: 3132 | C125: Logan | D125: FALSE | E125: GrLE | F125: FALSE GrLE | G125: FALSE | H125: =+MATCH(F125,[1]State!C$2:C$5954,0)+1 -> 
A126: Logan | B126: 3133 | C126: Logan | D126: FALSE | E126: GrLE | F126: FALSE GrLE | G126: FALSE | H126: =+MATCH(F126,[1]State!C$2:C$5954,0)+1 -> 
A127: Logan | B127: 3134 | C127: Logan | D127: FALSE | E127: HaGD4 | F127: FALSE HaGD4 | G127: FALSE | H127: =+MATCH(F127,[1]State!C$2:C$5954,0)+1 -> 
A128: Logan | B128: 3135 | C128: Logan | D128: FALSE | E128: HarC | F128: FALSE HarC | G128: FALSE | H128: =+MATCH(F128,[1]State!C$2:C$5954,0)+1 -> 
A129: Logan | B129: 3136 | C129: Logan | D129: FALSE | E129: HarC2 | F129: FALSE HarC2 | G129: FALSE | H129: =+MATCH(F129,[1]State!C$2:C$5954,0)+1 -> 
A130: Logan | B130: 3137 | C130: Logan | D130: FALSE | E130: HarG | F130: FALSE HarG | G130: FALSE | H130: =+MATCH(F130,[1]State!C$2:C$5954,0)+1 -> 
A131: Logan | B131: 3138 | C131: Logan | D131: FALSE | E131: HawB | F131: FALSE HawB | G131: FALSE | H131: =+MATCH(F131,[1]State!C$2:C$5954,0)+1 -> 
A132: Logan | B132: 3139 | C132: Logan | D132: FALSE | E132: ICGD3 | F132: FALSE ICGD3 | G132: FALSE | H132: =+MATCH(F132,[1]State!C$2:C$5954,0)+1 -> 
A133: Logan | B133: 3140 | C133: Logan | D133: FALSE | E133: ICGD3 | F133: FALSE ICGD3 | G133: FALSE | H133: =+MATCH(F133,[1]State!C$2:C$5954,0)+1 -> 
A134: Logan | B134: 3141 | C134: Logan | D134: FALSE | E134: ICGD3 | F134: FALSE ICGD3 | G134: FALSE | H134: =+MATCH(F134,[1]State!C$2:C$5954,0)+1 -> 
A135: Logan | B135: 3142 | C135: Logan | D135: FALSE | E135: IrCE | F135: FALSE IrCE | G135: FALSE | H135: =+MATCH(F135,[1]State!C$2:C$5954,0)+1 -> 
A136: Logan | B136: 3143 | C136: Logan | D136: FALSE | E136: IrCE | F136: FALSE IrCE | G136: FALSE | H136: =+MATCH(F136,[1]State!C$2:C$5954,0)+1 -> 
A137: Logan | B137: 3144 | C137: Logan | D137: FALSE | E137: IroC2 | F137: FALSE IroC2 | G137: FALSE | H137: =+MATCH(F137,[1]State!C$2:C$5954,0)+1 -> 
A138: Logan | B138: 3145 | C138: Logan | D138: FALSE | E138: KgfB | F138: FALSE KgfB | G138: FALSE | H138: =+MATCH(F138,[1]State!C$2:C$5954,0)+1 -> 
A139: Logan | B139: 3146 | C139: Logan | D139: FALSE | E139: KinC2 | F139: FALSE KinC2 | G139: FALSE | H139: =+MATCH(F139,[1]State!C$2:C$5954,0)+1 -> 
A140: Logan | B140: 3147 | C140: Logan | D140: FALSE | E140: KonB | F140: FALSE KonB | G140: FALSE | H140: =+MATCH(F140,[1]State!C$2:C$5954,0)+1 -> 
A141: Logan | B141: 3148 | C141: Logan | D141: FALSE | E141: KonD2 | F141: FALSE KonD2 | G141: FALSE | H141: =+MATCH(F141,[1]State!C$2:C$5954,0)+1 -> 
A142: Logan | B142: 3149 | C142: Logan | D142: FALSE | E142: KrdA | F142: FALSE KrdA | G142: FALSE | H142: =+MATCH(F142,[1]State!C$2:C$5954,0)+1 -> 
A143: Logan | B143: 3150 | C143: Logan | D143: FALSE | E143: KrkB | F143: FALSE KrkB | G143: FALSE | H143: =+MATCH(F143,[1]State!C$2:C$5954,0)+1 -> 
A144: Logan | B144: 3151 | C144: Logan | D144: FALSE | E144: LarA | F144: FALSE LarA | G144: FALSE | H144: =+MATCH(F144,[1]State!C$2:C$5954,0)+1 -> 
A145: Logan | B145: 3152 | C145: Logan | D145: FALSE | E145: LawA | F145: FALSE LawA | G145: FALSE | H145: =+MATCH(F145,[1]State!C$2:C$5954,0)+1 -> 
A146: Logan | B146: 3153 | C146: Logan | D146: FALSE | E146: LerA | F146: FALSE LerA | G146: FALSE | H146: =+MATCH(F146,[1]State!C$2:C$5954,0)+1 -> 
A147: Logan | B147: 3154 | C147: Logan | D147: FALSE | E147: LitB | F147: FALSE LitB | G147: FALSE | H147: =+MATCH(F147,[1]State!C$2:C$5954,0)+1 -> 
A148: Logan | B148: 3155 | C148: Logan | D148: FALSE | E148: LitC2 | F148: FALSE LitC2 | G148: FALSE | H148: =+MATCH(F148,[1]State!C$2:C$5954,0)+1 ->  | I148: =+INDIRECT(ADDRESS($H148,4,,,$B$17)) ->  | J148: =+INDIRECT(ADDRESS($H148,6,,,$B$17)) ->  | K148: =+INDIRECT(ADDRESS($H148,7,,,$B$17)) ->  | L148: =+INDIRECT(ADDRESS($H148,8,,,$B$17)) ->  | M148: =+INDIRECT(ADDRESS($H148,10,,,$B$17)) -> 
A149: Logan | B149: 3156 | C149: =+INDIRECT(ADDRESS($B149,1,,,$B$17)) -> Logan | D149: =IF($B$2=$C149,$B$2,FALSE) -> FALSE | E149: =+INDIRECT(ADDRESS(B149,2,,,$B$17)) -> MaID | F149: =+D149&" "&E149 -> FALSE MaID | G149: =IF($B$2=$C149,$E149,FALSE) -> FALSE | H149: =+MATCH(F149,[1]State!C$2:C$5954,0)+1 ->  | N149: =I149 -> 
A150: =+INDIRECT(ADDRESS($B150,1,,,$B$17)) -> Logan | B150: =B149+1 -> 3157 | C150: Logan | D150: FALSE | E150: MaID | F150: FALSE MaID | G150: FALSE | H150: =+MATCH(F150,[1]State!C$2:C$5954,0)+1 -> 
A151: Logan | B151: 3158 | C151: Logan | D151: FALSE | E151: MaIG | F151: FALSE MaIG | G151: FALSE | H151: =+MATCH(F151,[1]State!C$2:C$5954,0)+1 -> 
A152: Logan | B152: 3159 | C152: Logan | D152: FALSE | E152: MaIG | F152: FALSE MaIG | G152: FALSE | H152: =+MATCH(F152,[1]State!C$2:C$5954,0)+1 -> 
A153: Logan | B153: 3160 | C153: Logan | D153: FALSE | E153: MinB | F153: FALSE MinB | G153: FALSE | H153: =+MATCH(F153,[1]State!C$2:C$5954,0)+1 -> 
A154: Logan | B154: 3161 | C154: Logan | D154: FALSE | E154: MinC | F154: FALSE MinC | G154: FALSE | H154: =+MATCH(F154,[1]State!C$2:C$5954,0)+1 -> 
A155: Logan | B155: 3162 | C155: Logan | D155: FALSE | E155: MinD | F155: FALSE MinD | G155: FALSE | H155: =+MATCH(F155,[1]State!C$2:C$5954,0)+1 -> 
A156: Logan | B156: 3163 | C156: Logan | D156: FALSE | E156: MinF | F156: FALSE MinF | G156: FALSE | H156: =+MATCH(F156,[1]State!C$2:C$5954,0)+1 -> 
A157: Logan | B157: 3164 | C157: Logan | D157: FALSE | E157: MllA | F157: FALSE MllA | G157: FALSE | H157: =+MATCH(F157,[1]State!C$2:C$5954,0)+1 -> 
A158: Logan | B158: 3165 | C158: Logan | D158: FALSE | E158: MulC | F158: FALSE MulC | G158: FALSE | H158: =+MATCH(F158,[1]State!C$2:C$5954,0)+1 -> 
A159: Logan | B159: 3166 | C159: Logan | D159: FALSE | E159: MulC2 | F159: FALSE MulC2 | G159: FALSE | H159: =+MATCH(F159,[1]State!C$2:C$5954,0)+1 -> 
A160: Logan | B160: 3167 | C160: Logan | D160: FALSE | E160: M-W | F160: FALSE M-W | G160: FALSE | H160: =+MATCH(F160,[1]State!C$2:C$5954,0)+1 -> 
A161: Logan | B161: 3168 | C161: Logan | D161: FALSE | E161: NavA | F161: FALSE NavA | G161: FALSE | H161: =+MATCH(F161,[1]State!C$2:C$5954,0)+1 -> 
A162: Logan | B162: 3169 | C162: Logan | D162: FALSE | E162: NavB | F162: FALSE NavB | G162: FALSE | H162: =+MATCH(F162,[1]State!C$2:C$5954,0)+1 -> 
A163: Logan | B163: 3170 | C163: Logan | D163: FALSE | E163: NeGD4 | F163: FALSE NeGD4 | G163: FALSE | H163: =+MATCH(F163,[1]State!C$2:C$5954,0)+1 -> 
A164: Logan | B164: 3171 | C164: Logan | D164: FALSE | E164: NewB | F164: FALSE NewB | G164: FALSE | H164: =+MATCH(F164,[1]State!C$2:C$5954,0)+1 -> 
A165: Logan | B165: 3172 | C165: Logan | D165: FALSE | E165: NorA | F165: FALSE NorA | G165: FALSE | H165: =+MATCH(F165,[1]State!C$2:C$5954,0)+1 -> 
A166: Logan | B166: 3173 | C166: Logan | D166: FALSE | E166: NorB | F166: FALSE NorB | G166: FALSE | H166: =+MATCH(F166,[1]State!C$2:C$5954,0)+1 -> 
A167: Logan | B167: 3174 | C167: Logan | D167: FALSE | E167: NorC2 | F167: FALSE NorC2 | G167: FALSE | H167: =+MATCH(F167,[1]State!C$2:C$5954,0)+1 -> 
A168: Logan | B168: 3175 | C168: Logan | D168: FALSE | E168: OWHD | F168: FALSE OWHD | G168: FALSE | H168: =+MATCH(F168,[1]State!C$2:C$5954,0)+1 -> 
A169: Logan | B169: 3176 | C169: Logan | D169: FALSE | E169: PieB | F169: FALSE PieB | G169: FALSE | H169: =+MATCH(F169,[1]State!C$2:C$5954,0)+1 -> 
A170: Logan | B170: 3177 | C170: Logan | D170: FALSE | E170: PieC2 | F170: FALSE PieC2 | G170: FALSE | H170: =+MATCH(F170,[1]State!C$2:C$5954,0)+1 -> 
A171: Logan | B171: 3178 | C171: Logan | D171: FALSE | E171: PukA | F171: FALSE PukA | G171: FALSE | H171: =+MATCH(F171,[1]State!C$2:C$5954,0)+1 -> 
A172: Logan | B172: 3179 | C172: Logan | D172: FALSE | E172: PulA | F172: FALSE PulA | G172: FALSE | H172: =+MATCH(F172,[1]State!C$2:C$5954,0)+1 -> 
A173: Logan | B173: 3180 | C173: Logan | D173: FALSE | E173: RenB | F173: FALSE RenB | G173: FALSE | H173: =+MATCH(F173,[1]State!C$2:C$5954,0)+1 -> 
A174: Logan | B174: 3181 | C174: Logan | D174: FALSE | E174: RenC | F174: FALSE RenC | G174: FALSE | H174: =+MATCH(F174,[1]State!C$2:C$5954,0)+1 -> 
A175: Logan | B175: 3182 | C175: Logan | D175: FALSE | E175: RewC2 | F175: FALSE RewC2 | G175: FALSE | H175: =+MATCH(F175,[1]State!C$2:C$5954,0)+1 -> 
A176: Logan | B176: 3183 | C176: Logan | D176: FALSE | E176: RinB | F176: FALSE RinB | G176: FALSE | H176: =+MATCH(F176,[1]State!C$2:C$5954,0)+1 -> 
A177: Logan | B177: 3184 | C177: Logan | D177: FALSE | E177: RnnC2 | F177: FALSE RnnC2 | G177: FALSE | H177: =+MATCH(F177,[1]State!C$2:C$5954,0)+1 -> 
G199: Sy Drop down List | I199: Component Drop Down List
B200: Row Count 1 | C200: Return for RC1 | D200: County Match | E200: Symbol Match | F200: Component Lookup | H200: Row Count 2 | J200: Hydrologic Group | K200: Perc Ind | L200: Seas Index | M200: Adj NLI
A201: Row in State | B201: =MATCH(B3,[1]State!A2:A5954,0)+1 ->  | C201: =+INDIRECT(ADDRESS($B201,1,,,$B$17)) ->  | D201: =IF($B$3=$C201,$B$3,FALSE) ->  | E201: =+INDIRECT(ADDRESS(B201,2,,,$B$17)) ->  | F201: =+D201&" "&E201 ->  | G201: =IF($B$3=$C201,$E201,FALSE) ->  | H201: =+MATCH(F201,[1]State!C$2:C$5954,0)+1 ->  | I201: =+INDIRECT(ADDRESS($H201,4,,,$B$17)) ->  | J201: =+INDIRECT(ADDRESS($H201,6,,,$B$17)) ->  | K201: =+INDIRECT(ADDRESS($H201,7,,,$B$17)) ->  | L201: =+INDIRECT(ADDRESS($H201,8,,,$B$17)) ->  | M201: =+INDIRECT(ADDRESS($H201,10,,,$B$17)) -> 
A202: =+INDIRECT(ADDRESS($B202,1,,,$B$17)) ->  | B202: =B201+1 ->  | D202: =IF($B$3=$C202,$B$3,FALSE) ->  | E202: =+INDIRECT(ADDRESS(B202,2,,,$B$17)) ->  | F202: =+D202&" "&E202 ->  | G202: =IF($B$3=$C202,$E202,FALSE) ->  | H202: =+MATCH(F202,[1]State!C$2:C$5954,0)+1 -> 
B203: =B202+1 ->  | H203: =+MATCH(F203,[1]State!C$2:C$5954,0)+1 -> 
H204: =+MATCH(F204,[1]State!C$2:C$5954,0)+1 -> 
H205: =+MATCH(F205,[1]State!C$2:C$5954,0)+1 -> 
H206: =+MATCH(F206,[1]State!C$2:C$5954,0)+1 -> 
H207: =+MATCH(F207,[1]State!C$2:C$5954,0)+1 -> 
H208: =+MATCH(F208,[1]State!C$2:C$5954,0)+1 -> 
H209: =+MATCH(F209,[1]State!C$2:C$5954,0)+1 -> 
H210: =+MATCH(F210,[1]State!C$2:C$5954,0)+1 -> 
H211: =+MATCH(F211,[1]State!C$2:C$5954,0)+1 -> 
H212: =+MATCH(F212,[1]State!C$2:C$5954,0)+1 -> 
H213: =+MATCH(F213,[1]State!C$2:C$5954,0)+1 -> 
H214: =+MATCH(F214,[1]State!C$2:C$5954,0)+1 -> 
H215: =+MATCH(F215,[1]State!C$2:C$5954,0)+1 -> 
H216: =+MATCH(F216,[1]State!C$2:C$5954,0)+1 -> 
H217: =+MATCH(F217,[1]State!C$2:C$5954,0)+1 -> 
H218: =+MATCH(F218,[1]State!C$2:C$5954,0)+1 -> 
H219: =+MATCH(F219,[1]State!C$2:C$5954,0)+1 -> 
H220: =+MATCH(F220,[1]State!C$2:C$5954,0)+1 -> 
H221: =+MATCH(F221,[1]State!C$2:C$5954,0)+1 -> 
H222: =+MATCH(F222,[1]State!C$2:C$5954,0)+1 -> 
H223: =+MATCH(F223,[1]State!C$2:C$5954,0)+1 -> 
H224: =+MATCH(F224,[1]State!C$2:C$5954,0)+1 -> 
H225: =+MATCH(F225,[1]State!C$2:C$5954,0)+1 -> 
H226: =+MATCH(F226,[1]State!C$2:C$5954,0)+1 -> 
H227: =+MATCH(F227,[1]State!C$2:C$5954,0)+1 -> 
H228: =+MATCH(F228,[1]State!C$2:C$5954,0)+1 -> 
H229: =+MATCH(F229,[1]State!C$2:C$5954,0)+1 -> 
... 287 more rows

Sheet NLI Data (hidden)
A1: County | B1: Mapunit Symbol | C1: County and Symbol | D1: Component Name | E1: =CONCATENATE(B1," - ",D1) -> Mapunit Symbol - Component Name | F1: Hydrologic Group | G1: Percolation Index | H1: Seasonal Index | I1: NLI | J1: NLI Adjusted | L1: County
A2: Adair | B2: BdD | C2: =+A2&" "&B2 -> Adair BdD | D2: Clarksville | E2: =CONCATENATE(A2," ",B2, " ", D2) -> Adair BdD Clarksville | F2: B | G2: 14 | H2: 0.79 | I2: 11 | J2: =SUM(G2*H2) -> 11.06
A3: Adair | B3: BoE | C3: Adair BoE | D3: Clarksville | E3: =CONCATENATE(A3," ",B3, " ", D3) -> Adair BoE Clarksville | F3: B | G3: 14 | H3: 0.79 | I3: 11 | J3: 11.06 | L3: Adair
A4: Adair | B4: BsF | C4: Adair BsF | D4: Clarksville | E4: Adair BsF Clarksville | F4: B | G4: 14 | H4: 0.79 | I4: 11 | J4: 11.06 | L4: Alfalfa
A5: Adair | B5: CrC | C5: Adair CrC | D5: Craig | E5: Adair CrC Craig | F5: C | G5: 9.1 | H5: 0.79 | I5: 7.2 | J5: 7.189 | L5: Atoka
A6: Adair | B6: DcB | C6: Adair DcB | D6: Captina | E6: Adair DcB Captina | F6: C | G6: 9.1 | H6: 0.79 | I6: 7.2 | J6: 7.189 | L6: Beaver
A7: Adair | B7: DkA | C7: Adair DkA | D7: Tonti | E7: Adair DkA Tonti | F7: C | G7: 9.1 | H7: 0.79 | I7: 7.2 | J7: 7.189 | L7: Beckham
A8: Adair | B8: EaA | C8: Adair EaA | D8: Britwater | E8: Adair EaA Britwater | F8: B | G8: 14 | H8: 0.79 | I8: 11 | J8: 11.06 | L8: Blaine
A9: Adair | B9: EaB | C9: Adair EaB | D9: Britwater | E9: Adair EaB Britwater | F9: B | G9: 14 | H9: 0.79 | I9: 11 | J9: 11.06 | L9: Bryan
A10: Adair | B10: EoB | C10: Adair EoB | D10: Waben | E10: Adair EoB Waben | F10: A | G10: 20 | H10: 0.79 | I10: 16 | J10: 15.8 | L10: Caddo
A11: Adair | B11: EtD | C11: Adair EtD | D11: Waben | E11: Adair EtD Waben | F11: A | G11: 20 | H11: 0.79 | I11: 16 | J11: 15.8 | L11: Canadian
A12: Adair | B12: Ga | C12: Adair Ga | D12: Elsah | E12: Adair Ga Elsah | F12: B | G12: 14 | H12: 0.79 | I12: 11 | J12: 11.06 | L12: Carter
A13: Adair | B13: Hc | C13: Adair Hc | D13: Enders | E13: Adair Hc Enders | F13: D | G13: 6.6 | H13: 0.79 | I13: 5.3 | J13: 5.214 | L13: Cherokee
A14: Adair | B14: Hc | C14: Adair Hc | D14: Hector | E14: Adair Hc Hector | F14: D | G14: 6.6 | H14: 0.79 | I14: 5.3 | J14: 5.214 | L14: Choctaw
A15: Adair | B15: Hc | C15: Adair Hc | D15: Linker | E15: Adair Hc Linker | F15: C | G15: 9.1 | H15: 0.79 | I15: 7.2 | J15: 7.189 | L15: Cimarron
A16: Adair | B16: HlC | C16: Adair HlC | D16: Hector | E16: Adair HlC Hector | F16: D | G16: 6.6 | H16: 0.79 | I16: 5.3 | J16: 5.214 | L16: Cleveland
A17: Adair | B17: HlC | C17: Adair HlC | D17: Linker | E17: Adair HlC Linker | F17: C | G17: 9.1 | H17: 0.79 | I17: 7.2 | J17: 7.189 | L17: Coal
A18: Adair | B18: Hn | C18: Adair Hn | D18: Razort | E18: Adair Hn Razort | F18: B | G18: 14 | H18: 0.79 | I18: 11 | J18: 11.06 | L18: Comanche
A19: Adair | B19: Hu | C19: Adair Hu | D19: Elsah | E19: Adair Hu Elsah | F19: B | G19: 14 | H19: 0.79 | I19: 11 | J19: 11.06 | L19: Cotton
A20: Adair | B20: JaA | C20: Adair JaA | D20: Jay | E20: Adair JaA Jay | F20: C | G20: 9.1 | H20: 0.79 | I20: 7.2 | J20: 7.189 | L20: Craig
A21: Adair | B21: La | C21: Adair La | D21: Captina | E21: Adair La Captina | F21: C | G21: 9.1 | H21: 0.79 | I21: 7.2 | J21: 7.189 | L21: Creek
A22: Adair | B22: LkC | C22: Adair LkC | D22: Linker | E22: Adair LkC Linker | F22: C | G22: 9.1 | H22: 0.79 | I22: 7.2 | J22: 7.189 | L22: Custer
A23: Adair | B23: LkC2 | C23: Adair LkC2 | D23: Linker | E23: Adair LkC2 Linker | F23: C | G23: 9.1 | H23: 0.79 | I23: 7.2 | J23: 7.189 | L23: Delaware
A24: Adair | B24: LnC | C24: Adair LnC | D24: Linker | E24: Adair LnC Linker | F24: C | G24: 9.1 | H24: 0.79 | I24: 7.2 | J24: 7.189 | L24: Dewey
A25: Adair | B25: LnC2 | C25: Adair LnC2 | D25: Linker | E25: Adair LnC2 Linker | F25: C | G25: 9.1 | H25: 0.79 | I25: 7.2 | J25: 7.189 | L25: Ellis
A26: Adair | B26: MasA | C26: Adair MasA | D26: Mason | E26: Adair MasA Mason | F26: C | G26: 9.1 | H26: 0.79 | I26: 7.2 | J26: 7.189 | L26: Garfield
A27: Adair | B27: Oc | C27: Adair Oc | D27: Osage | E27: Adair Oc Osage | F27: D | G27: 6.6 | H27: 0.79 | I27: 5.3 | J27: 5.214 | L27: Garvin
A28: Adair | B28: PaA | C28: Adair PaA | D28: Parsons | E28: Adair PaA Parsons | F28: D | G28: 6.6 | H28: 0.79 | I28: 5.3 | J28: 5.214 | L28: Grady
A29: Adair | B29: So | C29: Adair So | D29: Sogn | E29: Adair So Sogn | F29: D | G29: 6.6 | H29: 0.79 | I29: 5.3 | J29: 5.214 | L29: Grant
A30: Adair | B30: SuA | C30: Adair SuA | D30: Apperson | E30: Adair SuA Apperson | F30: D | G30: 6.6 | H30: 0.79 | I30: 5.3 | J30: 5.214 | L30: Greer
A31: Adair | B31: SuB | C31: Adair SuB | D31: Apperson | E31: Adair SuB Apperson | F31: D | G31: 6.6 | H31: 0.79 | I31: 5.3 | J31: 5.214 | L31: Harmon
A32: Adair | B32: SuC | C32: Adair SuC | D32: Apperson | E32: Adair SuC Apperson | F32: D | G32: 6.6 | H32: 0.79 | I32: 5.3 | J32: 5.214 | L32: Harper
A33: Adair | B33: SuC2 | C33: Adair SuC2 | D33: Apperson | E33: Adair SuC2 Apperson | F33: D | G33: 6.6 | H33: 0.79 | I33: 5.3 | J33: 5.214 | L33: Haskell
A34: Adair | B34: Ta | C34: Adair Ta | D34: Razort | E34: Adair Ta Razort | F34: B | G34: 14 | H34: 0.79 | I34: 11 | J34: 11.06 | L34: Hughes
A35: Adair | B35: TkA | C35: Adair TkA | D35: Taloka | E35: Adair TkA Taloka | F35: D | G35: 6.6 | H35: 0.79 | I35: 5.3 | J35: 5.214 | L35: Jackson
A36: Alfalfa | B36: AbA | C36: Alfalfa AbA | D36: Wisby | E36: Alfalfa AbA Wisby | F36: A | G36: 7.3 | H36: 0.79 | I36: 5.8 | J36: 5.767 | L36: Jefferson
A37: Alfalfa | B37: AbB | C37: Alfalfa AbB | D37: Wisby | E37: Alfalfa AbB Wisby | F37: A | G37: 7.3 | H37: 0.79 | I37: 5.8 | J37: 5.767 | L37: Johnston
A38: Alfalfa | B38: AbC | C38: Alfalfa AbC | D38: Wisby | E38: Alfalfa AbC Wisby | F38: A | G38: 7.3 | H38: 0.79 | I38: 5.8 | J38: 5.767 | L38: Kay
A39: Alfalfa | B39: AbE | C39: Alfalfa AbE | D39: Wisby | E39: Alfalfa AbE Wisby | F39: A | G39: 7.3 | H39: 0.79 | I39: 5.8 | J39: 5.767 | L39: Kingfisher
A40: Alfalfa | B40: AgC | C40: Alfalfa AgC | D40: Grant | E40: Alfalfa AgC Grant | F40: B | G40: 3.4 | H40: 0.79 | I40: 2.7 | J40: 2.686 | L40: Kiowa
A41: Alfalfa | B41: AgC | C41: Alfalfa AgC | D41: Wisby | E41: Alfalfa AgC Wisby | F41: A | G41: 7.3 | H41: 0.79 | I41: 5.8 | J41: 5.767 | L41: Latimer
A42: Alfalfa | B42: AgC2 | C42: Alfalfa AgC2 | D42: Grant | E42: Alfalfa AgC2 Grant | F42: B | G42: 3.4 | H42: 0.79 | I42: 2.7 | J42: 2.686 | L42: LeFlore
A43: Alfalfa | B43: AgC2 | C43: Alfalfa AgC2 | D43: Wisby | E43: Alfalfa AgC2 Wisby | F43: A | G43: 7.3 | H43: 0.79 | I43: 5.8 | J43: 5.767 | L43: Lincoln
A44: Alfalfa | B44: AgD2 | C44: Alfalfa AgD2 | D44: Grant | E44: Alfalfa AgD2 Grant | F44: B | G44: 3.4 | H44: 0.79 | I44: 2.7 | J44: 2.686 | L44: Logan
A45: Alfalfa | B45: AgD2 | C45: Alfalfa AgD2 | D45: Wisby | E45: Alfalfa AgD2 Wisby | F45: A | G45: 7.3 | H45: 0.79 | I45: 5.8 | J45: 5.767 | L45: Love
A46: Alfalfa | B46: AlB | C46: Alfalfa AlB | D46: Aline | E46: Alfalfa AlB Aline | F46: A | G46: 7.3 | H46: 0.79 | I46: 5.8 | J46: 5.767 | L46: McClain
A47: Alfalfa | B47: AnE | C47: Alfalfa AnE | D47: Aline | E47: Alfalfa AnE Aline | F47: A | G47: 7.3 | H47: 0.79 | I47: 5.8 | J47: 5.767 | L47: McCurtain
A48: Alfalfa | B48: AnE | C48: Alfalfa AnE | D48: Tivoli | E48: Alfalfa AnE Tivoli | F48: A | G48: 7.3 | H48: 0.79 | I48: 5.8 | J48: 5.767 | L48: McIntosh
A49: Alfalfa | B49: AsB | C49: Alfalfa AsB | D49: Devol | E49: Alfalfa AsB Devol | F49: A | G49: 7.3 | H49: 0.79 | I49: 5.8 | J49: 5.767 | L49: Major
A50: Alfalfa | B50: AtB | C50: Alfalfa AtB | D50: Devol | E50: Alfalfa AtB Devol | F50: A | G50: 7.3 | H50: 0.79 | I50: 5.8 | J50: 5.767 | L50: Marshall
A51: Alfalfa | B51: AtC | C51: Alfalfa AtC | D51: Devol | E51: Alfalfa AtC Devol | F51: A | G51: 7.3 | H51: 0.79 | I51: 5.8 | J51: 5.767 | L51: Mayes
A52: Alfalfa | B52: Br | C52: Alfalfa Br | D52: Brewer | E52: Alfalfa Br Brewer | F52: C | G52: 1.3 | H52: 0.79 | I52: 1 | J52: 1.027 | L52: Murray
A53: Alfalfa | B53: Bu | C53: Alfalfa Bu | D53: Drummond | E53: Alfalfa Bu Drummond | F53: D | G53: 0.48 | H53: 0.79 | I53: 0.38 | J53: 0.3792 | L53: Muskogee
A54: Alfalfa | B54: Bu | C54: Alfalfa Bu | D54: Brewer | E54: Alfalfa Bu Brewer | F54: C | G54: 1.3 | H54: 0.79 | I54: 1 | J54: 1.027 | L54: Noble
A55: Alfalfa | B55: CaB | C55: Alfalfa CaB | D55: Carwile | E55: Alfalfa CaB Carwile | F55: C | G55: 1.3 | H55: 0.79 | I55: 1 | J55: 1.027 | L55: Nowata
A56: Alfalfa | B56: CaB | C56: Alfalfa CaB | D56: Devol | E56: Alfalfa CaB Devol | F56: A | G56: 7.3 | H56: 0.79 | I56: 5.8 | J56: 5.767 | L56: Okfuskee
A57: Alfalfa | B57: Cr | C57: Alfalfa Cr | D57: Crisfield | E57: Alfalfa Cr Crisfield | F57: A | G57: 7.3 | H57: 0.79 | I57: 5.8 | J57: 5.767 | L57: Oklahoma
A58: Alfalfa | B58: DaA | C58: Alfalfa DaA | D58: Dale | E58: Alfalfa DaA Dale | F58: B | G58: 3.4 | H58: 0.79 | I58: 2.7 | J58: 2.686 | L58: Okmulgee
A59: Alfalfa | B59: De | C59: Alfalfa De | D59: Buttermilk | E59: Alfalfa De Buttermilk | F59: B | G59: 3.4 | H59: 0.79 | I59: 2.7 | J59: 2.686 | L59: Osage
A60: Alfalfa | B60: DerF | C60: Alfalfa DerF | D60: Derby | E60: Alfalfa DerF Derby | F60: A | G60: 7.3 | H60: 0.79 | I60: 5.8 | J60: 5.767 | L60: Ottawa
A61: Alfalfa | B61: DerG | C61: Alfalfa DerG | D61: Derby | E61: Alfalfa DerG Derby | F61: A | G61: 7.3 | H61: 0.79 | I61: 5.8 | J61: 5.767 | L61: Pawnee
A62: Alfalfa | B62: DevD | C62: Alfalfa DevD | D62: Devol | E62: Alfalfa DevD Devol | F62: A | G62: 7.3 | H62: 0.79 | I62: 5.8 | J62: 5.767 | L62: Payne
A63: Alfalfa | B63: DlD | C63: Alfalfa DlD | D63: Dale | E63: Alfalfa DlD Dale | F63: B | G63: 3.4 | H63: 0.79 | I63: 2.7 | J63: 2.686 | L63: Pittsburg
A64: Alfalfa | B64: Dm | C64: Alfalfa Dm | D64: Daycreek | E64: Alfalfa Dm Daycreek | F64: A | G64: 7.3 | H64: 0.79 | I64: 5.8 | J64: 5.767 | L64: Pontotoc
A65: Alfalfa | B65: DoB | C65: Alfalfa DoB | D65: Dougherty | E65: Alfalfa DoB Dougherty | F65: B | G65: 3.4 | H65: 0.79 | I65: 2.7 | J65: 2.686 | L65: Pottawatomie
A66: Alfalfa | B66: DrB | C66: =+A66&" "&B66 -> Alfalfa DrB | D66: Drummond | E66: Alfalfa DrB Drummond | F66: D | G66: 0.48 | H66: 0.79 | I66: 0.38 | J66: =SUM(G66*H66) -> 0.3792 | L66: Pushmataha
A67: Alfalfa | B67: DtB | C67: Alfalfa DtB | D67: Drummond | E67: =CONCATENATE(A67," ",B67, " ", D67) -> Alfalfa DtB Drummond | F67: D | G67: 0.48 | H67: 0.79 | I67: 0.38 | J67: 0.3792 | L67: Roger Mills
A68: Alfalfa | B68: DtB | C68: Alfalfa DtB | D68: Eda | E68: Alfalfa DtB Eda | F68: A | G68: 7.3 | H68: 0.79 | I68: 5.8 | J68: 5.767 | L68: Rogers
A69: Alfalfa | B69: DvsB | C69: Alfalfa DvsB | D69: Devol | E69: Alfalfa DvsB Devol | F69: A | G69: 7.3 | H69: 0.79 | I69: 5.8 | J69: 5.767 | L69: Seminole
A70: Alfalfa | B70: DykA | C70: Alfalfa DykA | D70: Daycreek | E70: Alfalfa DykA Daycreek | F70: A | G70: 7.3 | H70: 0.79 | I70: 5.8 | J70: 5.767 | L70: Sequoyah
A71: Alfalfa | B71: EdaE | C71: Alfalfa EdaE | D71: Eda | E71: Alfalfa EdaE Eda | F71: A | G71: 7.3 | H71: 0.79 | I71: 5.8 | J71: 5.767 | L71: Stephens
A72: Alfalfa | B72: GAGF | C72: Alfalfa GAGF | D72: Grainola | E72: Alfalfa GAGF Grainola | F72: D | G72: 0.48 | H72: 0.79 | I72: 0.38 | J72: 0.3792 | L72: Texas
A73: Alfalfa | B73: GAGF | C73: Alfalfa GAGF | D73: Ashport | E73: Alfalfa GAGF Ashport | F73: B | G73: 3.4 | H73: 0.79 | I73: 2.7 | J73: 2.686 | L73: Tillman
A74: Alfalfa | B74: GAGF | C74: Alfalfa GAGF | D74: Grant | E74: Alfalfa GAGF Grant | F74: B | G74: 3.4 | H74: 0.79 | I74: 2.7 | J74: 2.686 | L74: Tulsa
A75: Alfalfa | B75: GoB | C75: Alfalfa GoB | D75: Goltry | E75: Alfalfa GoB Goltry | F75: A | G75: 7.3 | H75: 0.79 | I75: 5.8 | J75: 5.767 | L75: Wagoner
A76: Alfalfa | B76: GohC | C76: Alfalfa GohC | D76: Goodnight | E76: Alfalfa GohC Goodnight | F76: A | G76: 7.3 | H76: 0.79 | I76: 5.8 | J76: 5.767 | L76: Washington
A77: Alfalfa | B77: GooE | C77: Alfalfa GooE | D77: Goodnight | E77: Alfalfa GooE Goodnight | F77: A | G77: 7.3 | H77: 0.79 | I77: 5.8 | J77: 5.767 | L77: Washita
A78: Alfalfa | B78: Gp | C78: Alfalfa Gp | D78: Gracemont | E78: Alfalfa Gp Gracemont | F78: A | G78: 7.3 | H78: 0.79 | I78: 5.8 | J78: 5.767 | L78: Woods
A79: Alfalfa | B79: GrB | C79: Alfalfa GrB | D79: Grant | E79: Alfalfa GrB Grant | F79: B | G79: 3.4 | H79: 0.79 | I79: 2.7 | J79: 2.686 | L79: Woodward
A80: Alfalfa | B80: GrC | C80: Alfalfa GrC | D80: Grant | E80: Alfalfa GrC Grant | F80: B | G80: 3.4 | H80: 0.79 | I80: 2.7 | J80: 2.686
A81: Alfalfa | B81: GrC2 | C81: Alfalfa GrC2 | D81: Grant | E81: Alfalfa GrC2 Grant | F81: B | G81: 3.4 | H81: 0.79 | I81: 2.7 | J81: 2.686
A82: Alfalfa | B82: GtD2 | C82: Alfalfa GtD2 | D82: Nash | E82: Alfalfa GtD2 Nash | F82: C | G82: 1.3 | H82: 0.79 | I82: 1 | J82: 1.027
A83: Alfalfa | B83: GtD2 | C83: Alfalfa GtD2 | D83: Grant | E83: Alfalfa GtD2 Grant | F83: B | G83: 3.4 | H83: 0.79 | I83: 2.7 | J83: 2.686
A84: Alfalfa | B84: GuE | C84: Alfalfa GuE | D84: Grant | E84: Alfalfa GuE Grant | F84: B | G84: 3.4 | H84: 0.79 | I84: 2.7 | J84: 2.686
A85: Alfalfa | B85: GuE | C85: Alfalfa GuE | D85: Port | E85: Alfalfa GuE Port | F85: B | G85: 3.4 | H85: 0.79 | I85: 2.7 | J85: 2.686
A86: Alfalfa | B86: IrNE | C86: Alfalfa IrNE | D86: Ironmound | E86: Alfalfa IrNE Ironmound | F86: D | G86: 0.48 | H86: 0.79 | I86: 0.38 | J86: 0.3792
A87: Alfalfa | B87: IrNE | C87: Alfalfa IrNE | D87: Nash | E87: Alfalfa IrNE Nash | F87: C | G87: 1.3 | H87: 0.79 | I87: 1 | J87: 1.027
A88: Alfalfa | B88: IroB | C88: Alfalfa IroB | D88: Ironmound | E88: Alfalfa IroB Ironmound | F88: D | G88: 0.48 | H88: 0.79 | I88: 0.38 | J88: 0.3792
A89: Alfalfa | B89: IroC2 | C89: Alfalfa IroC2 | D89: Ironmound | E89: Alfalfa IroC2 Ironmound | F89: D | G89: 0.48 | H89: 0.79 | I89: 0.38 | J89: 0.3792
A90: Alfalfa | B90: KgID2 | C90: Alfalfa KgID2 | D90: Ironmound | E90: Alfalfa KgID2 Ironmound | F90: D | G90: 0.48 | H90: 0.79 | I90: 0.38 | J90: 0.3792
A91: Alfalfa | B91: KgID2 | C91: Alfalfa KgID2 | D91: Kingfisher | E91: Alfalfa KgID2 Kingfisher | F91: C | G91: 1.3 | H91: 0.79 | I91: 1 | J91: 1.027
A92: Alfalfa | B92: Ls | C92: Alfalfa Ls | D92: Gaddy | E92: Alfalfa Ls Gaddy | F92: A | G92: 7.3 | H92: 0.79 | I92: 5.8 | J92: 5.767
A93: Alfalfa | B93: LvdC | C93: Alfalfa LvdC | D93: Lovedale | E93: Alfalfa LvdC Lovedale | F93: B | G93: 3.4 | H93: 0.79 | I93: 2.7 | J93: 2.686
A94: Alfalfa | B94: Mc | C94: Alfalfa Mc | D94: McLain | E94: Alfalfa Mc McLain | F94: C | G94: 1.3 | H94: 0.79 | I94: 1 | J94: 1.027
A95: Alfalfa | B95: MilB | C95: Alfalfa MilB | D95: Milan | E95: Alfalfa MilB Milan | F95: C | G95: 1.3 | H95: 0.79 | I95: 1 | J95: 1.027
A96: Alfalfa | B96: Mr | C96: Alfalfa Mr | D96: Miller | E96: Alfalfa Mr Miller | F96: D | G96: 0.48 | H96: 0.79 | I96: 0.38 | J96: 0.3792
A97: Alfalfa | B97: PcA | C97: Alfalfa PcA | D97: Pond Creek | E97: Alfalfa PcA Pond Creek | F97: B | G97: 3.4 | H97: 0.79 | I97: 2.7 | J97: 2.686
A98: Alfalfa | B98: PcB | C98: Alfalfa PcB | D98: Pond Creek | E98: Alfalfa PcB Pond Creek | F98: B | G98: 3.4 | H98: 0.79 | I98: 2.7 | J98: 2.686
A99: Alfalfa | B99: Pr | C99: Alfalfa Pr | D99: Port | E99: Alfalfa Pr Port | F99: B | G99: 3.4 | H99: 0.79 | I99: 2.7 | J99: 2.686
A100: Alfalfa | B100: PtB | C100: Alfalfa PtB | D100: Eda | E100: Alfalfa PtB Eda | F100: A | G100: 7.3 | H100: 0.79 | I100: 5.8 | J100: 5.767
A101: Alfalfa | B101: PtC | C101: Alfalfa PtC | D101: Eda | E101: Alfalfa PtC Eda | F101: A | G101: 7.3 | H101: 0.79 | I101: 5.8 | J101: 5.767
A102: Alfalfa | B102: QwC | C102: Alfalfa QwC | D102: Quinlan | E102: Alfalfa QwC Quinlan | F102: D | G102: 0.48 | H102: 0.79 | I102: 0.38 | J102: 0.3792
A103: Alfalfa | B103: QwC | C103: Alfalfa QwC | D103: Woodward | E103: Alfalfa QwC Woodward | F103: C | G103: 1.3 | H103: 0.79 | I103: 1 | J103: 1.027
A104: Alfalfa | B104: QwE | C104: Alfalfa QwE | D104: Quinlan | E104: Alfalfa QwE Quinlan | F104: D | G104: 0.48 | H104: 0.79 | I104: 0.38 | J104: 0.3792
A105: Alfalfa | B105: QwE | C105: Alfalfa QwE | D105: Woodward | E105: Alfalfa QwE Woodward | F105: C | G105: 1.3 | H105: 0.79 | I105: 1 | J105: 1.027
A106: Alfalfa | B106: Ra | C106: Alfalfa Ra | D106: Reinach | E106: Alfalfa Ra Reinach | F106: B | G106: 3.4 | H106: 0.79 | I106: 2.7 | J106: 2.686
A107: Alfalfa | B107: RcA | C107: Alfalfa RcA | D107: Renfrow | E107: Alfalfa RcA Renfrow | F107: D | G107: 0.48 | H107: 0.79 | I107: 0.38 | J107: 0.3792
A108: Alfalfa | B108: RuA | C108: Alfalfa RuA | D108: Carman | E108: Alfalfa RuA Carman | F108: B | G108: 3.4 | H108: 0.79 | I108: 2.7 | J108: 2.686
A109: Alfalfa | B109: RuA | C109: Alfalfa RuA | D109: Ruella | E109: Alfalfa RuA Ruella | F109: B | G109: 3.4 | H109: 0.79 | I109: 2.7 | J109: 2.686
A110: Alfalfa | B110: ShB | C110: Alfalfa ShB | D110: Lovedale | E110: Alfalfa ShB Lovedale | F110: B | G110: 3.4 | H110: 0.79 | I110: 2.7 | J110: 2.686
A111: Alfalfa | B111: TaA | C111: Alfalfa TaA | D111: Tabler | E111: Alfalfa TaA Tabler | F111: D | G111: 0.48 | H111: 0.79 | I111: 0.38 | J111: 0.3792
A112: Alfalfa | B112: Tr | C112: Alfalfa Tr | D112: Tivoli | E112: Alfalfa Tr Tivoli | F112: A | G112: 7.3 | H112: 0.79 | I112: 5.8 | J112: 5.767
A113: Alfalfa | B113: WayB | C113: Alfalfa WayB | D113: Waynoka | E113: Alfalfa WayB Waynoka | F113: B | G113: 3.4 | H113: 0.79 | I113: 2.7 | J113: 2.686
A114: Alfalfa | B114: WkaB | C114: Alfalfa WkaB | D114: Waynoka | E114: Alfalfa WkaB Waynoka | F114: B | G114: 3.4 | H114: 0.79 | I114: 2.7 | J114: 2.686
A115: Alfalfa | B115: WoDB | C115: Alfalfa WoDB | D115: Woodward | E115: Alfalfa WoDB Woodward | F115: C | G115: 1.3 | H115: 0.79 | I115: 1 | J115: 1.027
A116: Alfalfa | B116: WoDB | C116: Alfalfa WoDB | D116: Deepwood | E116: Alfalfa WoDB Deepwood | F116: B | G116: 3.4 | H116: 0.79 | I116: 2.7 | J116: 2.686
A117: Alfalfa | B117: WQBC2 | C117: Alfalfa WQBC2 | D117: Quinlan | E117: Alfalfa WQBC2 Quinlan | F117: D | G117: 0.48 | H117: 0.79 | I117: 0.38 | J117: 0.3792
A118: Alfalfa | B118: WQBC2 | C118: Alfalfa WQBC2 | D118: Burson | E118: Alfalfa WQBC2 Burson | F118: D | G118: 0.48 | H118: 0.79 | I118: 0.38 | J118: 0.3792
A119: Alfalfa | B119: WQBC2 | C119: Alfalfa WQBC2 | D119: Woodward | E119: Alfalfa WQBC2 Woodward | F119: C | G119: 1.3 | H119: 0.79 | I119: 1 | J119: 1.027
A120: Alfalfa | B120: WuB | C120: Alfalfa WuB | D120: Quinlan | E120: Alfalfa WuB Quinlan | F120: D | G120: 0.48 | H120: 0.79 | I120: 0.38 | J120: 0.3792
A121: Alfalfa | B121: WuB | C121: Alfalfa WuB | D121: Woodward | E121: Alfalfa WuB Woodward | F121: C | G121: 1.3 | H121: 0.79 | I121: 1 | J121: 1.027
A122: Alfalfa | B122: Ya | C122: Alfalfa Ya | D122: Yahola | E122: Alfalfa Ya Yahola | F122: A | G122: 7.3 | H122: 0.79 | I122: 5.8 | J122: 5.767
A123: Alfalfa | B123: Yp | C123: Alfalfa Yp | D123: Port | E123: Alfalfa Yp Port | F123: B | G123: 3.4 | H123: 0.79 | I123: 2.7 | J123: 2.686
A124: Alfalfa | B124: Yp | C124: Alfalfa Yp | D124: Yahola | E124: Alfalfa Yp Yahola | F124: A | G124: 7.3 | H124: 0.79 | I124: 5.8 | J124: 5.767
A125: Atoka | B125: 1 | C125: Atoka 1 | D125: Agan | E125: Atoka 1 Agan | F125: D | G125: 5.3 | H125: 0.69 | I125: 3.7 | J125: 3.657
A126: Atoka | B126: 10 | C126: Atoka 10 | D126: Bernow | E126: Atoka 10 Bernow | F126: B | G126: 12 | H126: 0.69 | I126: 8.2 | J126: 8.28
A127: Atoka | B127: 11 | C127: Atoka 11 | D127: Bernow | E127: Atoka 11 Bernow | F127: B | G127: 12 | H127: 0.69 | I127: 8.2 | J127: 8.28
A128: Atoka | B128: 11 | C128: Atoka 11 | D128: Romia | E128: Atoka 11 Romia | F128: B | G128: 12 | H128: 0.69 | I128: 8.2 | J128: 8.28
A129: Atoka | B129: 12 | C129: Atoka 12 | D129: Bernow | E129: Atoka 12 Bernow | F129: B | G129: 12 | H129: 0.69 | I129: 8.2 | J129: 8.28
A130: Atoka | B130: 13 | C130: =+A130&" "&B130 -> Atoka 13 | D130: Bigfork | E130: Atoka 13 Bigfork | F130: C | G130: 7.5 | H130: 0.69 | I130: 5.2 | J130: =SUM(G130*H130) -> 5.175
A131: Atoka | B131: 13 | C131: Atoka 13 | D131: Yanush | E131: =CONCATENATE(A131," ",B131, " ", D131) -> Atoka 13 Yanush | F131: B | G131: 12 | H131: 0.69 | I131: 8.2 | J131: 8.28
A132: Atoka | B132: 14 | C132: Atoka 14 | D132: Boggy | E132: Atoka 14 Boggy | F132: B | G132: 12 | H132: 0.69 | I132: 8.2 | J132: 8.28
A133: Atoka | B133: 15 | C133: Atoka 15 | D133: Bosville | E133: Atoka 15 Bosville | F133: D | G133: 5.3 | H133: 0.69 | I133: 3.7 | J133: 3.657
A134: Atoka | B134: 16 | C134: Atoka 16 | D134: Bosville | E134: Atoka 16 Bosville | F134: D | G134: 5.3 | H134: 0.69 | I134: 3.7 | J134: 3.657
A135: Atoka | B135: 17 | C135: Atoka 17 | D135: Bosville | E135: Atoka 17 Bosville | F135: D | G135: 5.3 | H135: 0.69 | I135: 3.7 | J135: 3.657
A136: Atoka | B136: 18 | C136: Atoka 18 | D136: Burleson | E136: Atoka 18 Burleson | F136: D | G136: 5.3 | H136: 0.69 | I136: 3.7 | J136: 3.657
A137: Atoka | B137: 19 | C137: Atoka 19 | D137: Burleson | E137: Atoka 19 Burleson | F137: D | G137: 5.3 | H137: 0.69 | I137: 3.7 | J137: 3.657
A138: Atoka | B138: 2 | C138: Atoka 2 | D138: Bates | E138: Atoka 2 Bates | F138: C | G138: 7.5 | H138: 0.69 | I138: 5.2 | J138: 5.175
A139: Atoka | B139: 20 | C139: Atoka 20 | D139: Clebit | E139: Atoka 20 Clebit | F139: D | G139: 5.3 | H139: 0.69 | I139: 3.7 | J139: 3.657
A140: Atoka | B140: 20 | C140: Atoka 20 | D140: Carnasaw | E140: Atoka 20 Carnasaw | F140: C | G140: 7.5 | H140: 0.69 | I140: 5.2 | J140: 5.175
A141: Atoka | B141: 21 | C141: Atoka 21 | D141: Clebit | E141: Atoka 21 Clebit | F141: D | G141: 5.3 | H141: 0.69 | I141: 3.7 | J141: 3.657
A142: Atoka | B142: 21 | C142: Atoka 21 | D142: Carnasaw | E142: Atoka 21 Carnasaw | F142: C | G142: 7.5 | H142: 0.69 | I142: 5.2 | J142: 5.175
A143: Atoka | B143: 22 | C143: Atoka 22 | D143: Clebit | E143: Atoka 22 Clebit | F143: D | G143: 5.3 | H143: 0.69 | I143: 3.7 | J143: 3.657
A144: Atoka | B144: 22 | C144: Atoka 22 | D144: Carnasaw | E144: Atoka 22 Carnasaw | F144: C | G144: 7.5 | H144: 0.69 | I144: 5.2 | J144: 5.175
A145: Atoka | B145: 23 | C145: Atoka 23 | D145: Clebit | E145: Atoka 23 Clebit | F145: D | G145: 5.3 | H145: 0.69 | I145: 3.7 | J145: 3.657
A146: Atoka | B146: 23 | C146: Atoka 23 | D146: Carnasaw | E146: Atoka 23 Carnasaw | F146: C | G146: 7.5 | H146: 0.69 | I146: 5.2 | J146: 5.175
A147: Atoka | B147: 24 | C147: Atoka 24 | D147: Chigley | E147: Atoka 24 Chigley | F147: C | G147: 7.5 | H147: 0.69 | I147: 5.2 | J147: 5.175
A148: Atoka | B148: 25 | C148: Atoka 25 | D148: Chigley | E148: Atoka 25 Chigley | F148: C | G148: 7.5 | H148: 0.69 | I148: 5.2 | J148: 5.175
A149: Atoka | B149: 26 | C149: Atoka 26 | D149: Claremore | E149: Atoka 26 Claremore | F149: D | G149: 5.3 | H149: 0.69 | I149: 3.7 | J149: 3.657
A150: Atoka | B150: 26 | C150: Atoka 26 | D150: Catoosa | E150: Atoka 26 Catoosa | F150: C | G150: 7.5 | H150: 0.69 | I150: 5.2 | J150: 5.175
A151: Atoka | B151: 27 | C151: Atoka 27 | D151: Counts | E151: Atoka 27 Counts | F151: D | G151: 5.3 | H151: 0.69 | I151: 3.7 | J151: 3.657
A152: Atoka | B152: 28 | C152: Atoka 28 | D152: Dela | E152: Atoka 28 Dela | F152: A | G152: 18 | H152: 0.69 | I152: 13 | J152: 12.42
A153: Atoka | B153: 29 | C153: Atoka 29 | D153: Dennis | E153: Atoka 29 Dennis | F153: C | G153: 7.5 | H153: 0.69 | I153: 5.2 | J153: 5.175
A154: Atoka | B154: 3 | C154: Atoka 3 | D154: Bates | E154: Atoka 3 Bates | F154: C | G154: 7.5 | H154: 0.69 | I154: 5.2 | J154: 5.175
A155: Atoka | B155: 30 | C155: Atoka 30 | D155: Dennis | E155: Atoka 30 Dennis | F155: C | G155: 7.5 | H155: 0.69 | I155: 5.2 | J155: 5.175
A156: Atoka | B156: 31 | C156: Atoka 31 | D156: Eram | E156: Atoka 31 Eram | F156: D | G156: 5.3 | H156: 0.69 | I156: 3.7 | J156: 3.657
A157: Atoka | B157: 31 | C157: Atoka 31 | D157: Dennis | E157: Atoka 31 Dennis | F157: C | G157: 7.5 | H157: 0.69 | I157: 5.2 | J157: 5.175
A158: Atoka | B158: 32 | C158: Atoka 32 | D158: Durant | E158: Atoka 32 Durant | F158: D | G158: 5.3 | H158: 0.69 | I158: 3.7 | J158: 3.657
A159: Atoka | B159: 33 | C159: Atoka 33 | D159: Durant | E159: Atoka 33 Durant | F159: D | G159: 5.3 | H159: 0.69 | I159: 3.7 | J159: 3.657
A160: Atoka | B160: 34 | C160: Atoka 34 | D160: Endsaw | E160: Atoka 34 Endsaw | F160: D | G160: 5.3 | H160: 0.69 | I160: 3.7 | J160: 3.657
A161: Atoka | B161: 34 | C161: Atoka 34 | D161: Hector | E161: Atoka 34 Hector | F161: D | G161: 5.3 | H161: 0.69 | I161: 3.7 | J161: 3.657
A162: Atoka | B162: 35 | C162: Atoka 35 | D162: Endsaw | E162: Atoka 35 Endsaw | F162: D | G162: 5.3 | H162: 0.69 | I162: 3.7 | J162: 3.657
A163: Atoka | B163: 35 | C163: Atoka 35 | D163: Hector | E163: Atoka 35 Hector | F163: D | G163: 5.3 | H163: 0.69 | I163: 3.7 | J163: 3.657
A164: Atoka | B164: 36 | C164: Atoka 36 | D164: Endsaw | E164: Atoka 36 Endsaw | F164: D | G164: 5.3 | H164: 0.69 | I164: 3.7 | J164: 3.657
A165: Atoka | B165: 36 | C165: Atoka 36 | D165: Hector | E165: Atoka 36 Hector | F165: D | G165: 5.3 | H165: 0.69 | I165: 3.7 | J165: 3.657
A166: Atoka | B166: 37 | C166: Atoka 37 | D166: Endsaw | E166: Atoka 37 Endsaw | F166: D | G166: 5.3 | H166: 0.69 | I166: 3.7 | J166: 3.657
A167: Atoka | B167: 37 | C167: Atoka 37 | D167: Hector | E167: Atoka 37 Hector | F167: D | G167: 5.3 | H167: 0.69 | I167: 3.7 | J167: 3.657
A168: Atoka | B168: 38 | C168: Atoka 38 | D168: Eram | E168: Atoka 38 Eram | F168: D | G168: 5.3 | H168: 0.69 | I168: 3.7 | J168: 3.657
A169: Atoka | B169: 39 | C169: Atoka 39 | D169: Eram | E169: Atoka 39 Eram | F169: D | G169: 5.3 | H169: 0.69 | I169: 3.7 | J169: 3.657
A170: Atoka | B170: 4 | C170: Atoka 4 | D170: Bates | E170: Atoka 4 Bates | F170: C | G170: 7.5 | H170: 0.69 | I170: 5.2 | J170: 5.175
A171: Atoka | B171: 40 | C171: Atoka 40 | D171: Eram | E171: Atoka 40 Eram | F171: D | G171: 5.3 | H171: 0.69 | I171: 3.7 | J171: 3.657
A172: Atoka | B172: 40 | C172: Atoka 40 | D172: Talihina | E172: Atoka 40 Talihina | F172: D | G172: 5.3 | H172: 0.69 | I172: 3.7 | J172: 3.657
A173: Atoka | B173: 41 | C173: Atoka 41 | D173: Gowton | E173: Atoka 41 Gowton | F173: B | G173: 12 | H173: 0.69 | I173: 8.2 | J173: 8.28
A174: Atoka | B174: 42 | C174: Atoka 42 | D174: Guyton | E174: Atoka 42 Guyton | F174: C | G174: 7.5 | H174: 0.69 | I174: 5.2 | J174: 5.175
A175: Atoka | B175: 43 | C175: Atoka 43 | D175: Hamden | E175: Atoka 43 Hamden | F175: C | G175: 7.5 | H175: 0.69 | I175: 5.2 | J175: 5.175
A176: Atoka | B176: 44 | C176: Atoka 44 | D176: Clearview | E176: Atoka 44 Clearview | F176: C | G176: 7.5 | H176: 0.69 | I176: 5.2 | J176: 5.175
A177: Atoka | B177: 45 | C177: Atoka 45 | D177: Clearview | E177: Atoka 45 Clearview | F177: C | G177: 7.5 | H177: 0.69 | I177: 5.2 | J177: 5.175
A178: Atoka | B178: 46 | C178: Atoka 46 | D178: Clearview | E178: Atoka 46 Clearview | F178: C | G178: 7.5 | H178: 0.69 | I178: 5.2 | J178: 5.175
A179: Atoka | B179: 47 | C179: Atoka 47 | D179: Hector | E179: Atoka 47 Hector | F179: D | G179: 5.3 | H179: 0.69 | I179: 3.7 | J179: 3.657
A180: Atoka | B180: 47 | C180: Atoka 47 | D180: Clearview | E180: Atoka 47 Clearview | F180: C | G180: 7.5 | H180: 0.69 | I180: 5.2 | J180: 5.175
A181: Atoka | B181: 48 | C181: Atoka 48 | D181: Heiden | E181: Atoka 48 Heiden | F181: D | G181: 5.3 | H181: 0.69 | I181: 3.7 | J181: 3.657
A182: Atoka | B182: 49 | C182: Atoka 49 | D182: Heiden | E182: Atoka 49 Heiden | F182: D | G182: 5.3 | H182: 0.69 | I182: 3.7 | J182: 3.657
A183: Atoka | B183: 5 | C183: Atoka 5 | D183: Coweta | E183: Atoka 5 Coweta | F183: D | G183: 5.3 | H183: 0.69 | I183: 3.7 | J183: 3.657
A184: Atoka | B184: 5 | C184: Atoka 5 | D184: Bates | E184: Atoka 5 Bates | F184: C | G184: 7.5 | H184: 0.69 | I184: 5.2 | J184: 5.175
A185: Atoka | B185: 50 | C185: Atoka 50 | D185: Kaufman | E185: Atoka 50 Kaufman | F185: D | G185: 5.3 | H185: 0.69 | I185: 3.7 | J185: 3.657
A186: Atoka | B186: 51 | C186: Atoka 51 | D186: Kaufman | E186: Atoka 51 Kaufman | F186: D | G186: 5.3 | H186: 0.69 | I186: 3.7 | J186: 3.657
A187: Atoka | B187: 51 | C187: Atoka 51 | D187: Gowton | E187: Atoka 51 Gowton | F187: B | G187: 12 | H187: 0.69 | I187: 8.2 | J187: 8.28
A188: Atoka | B188: 52 | C188: Atoka 52 | D188: Kiti | E188: Atoka 52 Kiti | F188: D | G188: 5.3 | H188: 0.69 | I188: 3.7 | J188: 3.657
A189: Atoka | B189: 53 | C189: Atoka 53 | D189: Kiti | E189: Atoka 53 Kiti | F189: D | G189: 5.3 | H189: 0.69 | I189: 3.7 | J189: 3.657
A190: Atoka | B190: 54 | C190: Atoka 54 | D190: Larue | E190: Atoka 54 Larue | F190: B | G190: 12 | H190: 0.69 | I190: 8.2 | J190: 8.28
A191: Atoka | B191: 55 | C191: Atoka 55 | D191: Larue | E191: Atoka 55 Larue | F191: B | G191: 12 | H191: 0.69 | I191: 8.2 | J191: 8.28
A192: Atoka | B192: 57 | C192: Atoka 57 | D192: Parsons | E192: Atoka 57 Parsons | F192: D | G192: 5.3 | H192: 0.69 | I192: 3.7 | J192: 3.657
A193: Atoka | B193: 58 | C193: Atoka 58 | D193: Parsons | E193: Atoka 58 Parsons | F193: D | G193: 5.3 | H193: 0.69 | I193: 3.7 | J193: 3.657
A194: Atoka | B194: 59 | C194: =+A194&" "&B194 -> Atoka 59 | D194: Parsons | E194: Atoka 59 Parsons | F194: D | G194: 5.3 | H194: 0.69 | I194: 3.7 | J194: =SUM(G194*H194) -> 3.657
A195: Atoka | B195: 6 | C195: Atoka 6 | D195: Bernow | E195: =CONCATENATE(A195," ",B195, " ", D195) -> Atoka 6 Bernow | F195: B | G195: 12 | H195: 0.69 | I195: 8.2 | J195: 8.28
A196: Atoka | B196: 60 | C196: Atoka 60 | D196: Pickton | E196: Atoka 60 Pickton | F196: A | G196: 18 | H196: 0.69 | I196: 13 | J196: 12.42
A197: Atoka | B197: 61 | C197: Atoka 61 | D197: Rexor | E197: Atoka 61 Rexor | F197: B | G197: 12 | H197: 0.69 | I197: 8.2 | J197: 8.28
A198: Atoka | B198: 62 | C198: Atoka 62 | D198: Rexor | E198: Atoka 62 Rexor | F198: B | G198: 12 | H198: 0.69 | I198: 8.2 | J198: 8.28
A199: Atoka | B199: 62 | C199: Atoka 62 | D199: Dela | E199: Atoka 62 Dela | F199: A | G199: 18 | H199: 0.69 | I199: 13 | J199: 12.42
A200: Atoka | B200: 63 | C200: Atoka 63 | D200: Saffell | E200: Atoka 63 Saffell | F200: B | G200: 12 | H200: 0.69 | I200: 8.2 | J200: 8.28
... 5754 more rows

Sheet Orig. Nutrient Budget Worksheet (hidden)
A2: Landowner: | F2: Field No.: | H2: Acres:
A4: Crop Sequence/Rotation | F4: Expected Yield
A7: Nutrient Content of Manure per
A8: N Test | B8: N Remaining | C8: P2O5 | F8: K2O
A11: Current Soil Test Levels
A12: N | B12: P | C12: K | D12: pH | F12: SOM% | H12: EC
A15: Recommended Nutrients to Meet Expected Yield and Grass Establishment (See Tables in 590 Standard)
A16: N | B16: N for Grass Est. | C16: P2O5 | D16: K2O | F16: Lime | H16: Other
A19: Nutrient Sources
A20: Credits | D20: N | F20: P2O5 | H20: K2O
A21: 1. Nitrogen credits from previous legume crop
A22: 2. Residual from long-term manure application
A23: 3. Irrigation water
A24: 4. Other (Atmosphere, etc.)
A25: 5. Total Credits | D25: =SUM(D21:D24) -> 0 | F25: =F23 -> 0 | H25: =H23 -> 0
A26: Applied Nutrients | D26: N | F26: P2O5 | H26: K2O
D27: Alt. 1 | E27: Alt. 2 | F27: Alt. 1 | G27: Alt. 2 | H27: Alt. 1 | I27: Alt. 2
A28: 6. Fertilizer | B28: Starter
B29: Other
A30: 7. Manure or Organic by-products
A31: 8. Total Applied Nutrients | D31: =SUM(D28,D29,D30) -> 0 | E31: =SUM(E28,E29,E30) -> 0 | F31: 0 | G31: 0 | H31: 0 | I31: 0
A32: 9. Total Nutrients (add lines 5 and 8 plus N from Soil Test) | D32: =IF(A17="",SUM(D25,D31),IF(B17="",SUM(D25,D31,A13))) -> 0 | E32: =IF(A17="",SUM(D25,E31),IF(B17="",SUM(D25,E31,A13))) -> 0 | F32: =SUM(F25,F31) -> 0 | G32: =SUM(F25,G31) -> 0 | H32: =SUM(H25,H31) -> 0 | I32: =SUM(H25,I31) -> 0
A33: 10. Recommended Nutrients | D33: =A17+B17 -> 0 | E33: =A17+B17 -> 0 | F33: =C17 -> 0 | G33: =C17 -> 0 | H33: =D17 -> 0 | I33: =D17 -> 0
A34: 11. Nutrient Status (subtract line 10 from 9) | D34: =(D32-D33) -> 0 | E34: 0 | F34: 0 | G34: 0 | H34: 0 | I34: 0
A35: If line 11 is a negative number, this is the amount of additional nutrients needed to meet the crop recommendation.
A36: If line 11 is a positive number, this is the amount by which the applied nutrients exceed the crop requirements.
A38: Nutrient Management Decision - Including method, rate, form and timing of application. | F38: Producer Selected Alternative:
A47: Ctrl + d clears worksheet

Sheet Dry Waste Application (hidden)
A1: Client Name: | G1: Planner: | K1: Date:
A2: Field(s) | B2: Total Acres | C2: Field Application Acres | D2: Crop or Grass Grown (include Sequence / Rotation if used) | E2: Crop Yield Goal | F2: Allowable P2O5 Application Rate By Field (lbs/ac/yr) Use OK Phosphorus Assessment Tool | G2: Maximum Manure Application Rate By Field (tons/ac/yr) (Column F x J4) | H2: Maximum Total Manure Application By Field (tons/field) (Column C x G) | I2: Total Manure Nutrient Application (lbs/field) | L2: Additional Fertilizer Nutrients To Be Applied / Yield Goal (lbs/ac)
I3: Manure Analysis: (enter below)
I5: N * * | J5: P2O5 ** | K5: K2O * * | L5: N | M5: P2O5 | N5: K2O
G6: =IF(OR(J4="",F6=""),"",(F6/J4)) ->  | H6: =IF(OR(C6="",G6="",J4=""),"",(C6*G6)) ->  | I6: =IF(OR(I4="",H6=""),"",(I4*H6)) ->  | J6: =IF(OR(J4="",H6=""),"",(J4*H6)) ->  | K6: =IF(OR(K4="",H6=""),"",(K4*H6)) -> 
G7: =IF(OR(J4="",F7=""),"",(F7/J4)) ->  | H7: =IF(OR(C7="",G7="",J4=""),"",(C7*G7)) ->  | I7: =IF(OR(I4="",H7=""),"",(I4*H7)) ->  | J7: =IF(OR(J4="",H7=""),"",(J4*H7)) ->  | K7: =IF(OR(K4="",H7=""),"",(K4*H7)) -> 
G8: =IF(OR(J4="",F8=""),"",(F8/J4)) ->  | H8: =IF(OR(C8="",G8="",J4=""),"",(C8*G8)) ->  | I8: =IF(OR(I4="",H8=""),"",(I4*H8)) ->  | J8: =IF(OR(J4="",H8=""),"",(J4*H8)) ->  | K8: =IF(OR(K4="",H8=""),"",(K4*H8)) -> 
G9: =IF(OR(J4="",F9=""),"",(F9/J4)) ->  | H9: =IF(OR(C9="",G9="",J4=""),"",(C9*G9)) ->  | I9: =IF(OR(I4="",H9=""),"",(I4*H9)) ->  | J9: =IF(OR(J4="",H9=""),"",(J4*H9)) ->  | K9: =IF(OR(K4="",H9=""),"",(K4*H9)) -> 
G10: =IF(OR(J4="",F10=""),"",(F10/J4)) ->  | H10: =IF(OR(C10="",G10="",J4=""),"",(C10*G10)) ->  | I10: =IF(OR(I4="",H10=""),"",(I4*H10)) ->  | J10: =IF(OR(J4="",H10=""),"",(J4*H10)) ->  | K10: =IF(OR(K4="",H10=""),"",(K4*H10)) -> 
G11: =IF(OR(J4="",F11=""),"",(F11/J4)) ->  | H11: =IF(OR(C11="",G11="",J4=""),"",(C11*G11)) ->  | I11: =IF(OR(I4="",H11=""),"",(I4*H11)) ->  | J11: =IF(OR(J4="",H11=""),"",(J4*H11)) ->  | K11: =IF(OR(K4="",H11=""),"",(K4*H11)) -> 
G12: =IF(OR(J4="",F12=""),"",(F12/J4)) ->  | H12: =IF(OR(C12="",G12="",J4=""),"",(C12*G12)) ->  | I12: =IF(OR(I4="",H12=""),"",(I4*H12)) ->  | J12: =IF(OR(J4="",H12=""),"",(J4*H12)) ->  | K12: =IF(OR(K4="",H12=""),"",(K4*H12)) -> 
G13: =IF(OR(J4="",F13=""),"",(F13/J4)) ->  | H13: =IF(OR(C13="",G13="",J4=""),"",(C13*G13)) ->  | I13: =IF(OR(I4="",H13=""),"",(I4*H13)) ->  | J13: =IF(OR(J4="",H13=""),"",(J4*H13)) ->  | K13: =IF(OR(K4="",H13=""),"",(K4*H13)) -> 
G14: =IF(OR(J4="",F14=""),"",(F14/J4)) ->  | H14: =IF(OR(C14="",G14="",J4=""),"",(C14*G14)) ->  | I14: =IF(OR(I4="",H14=""),"",(I4*H14)) ->  | J14: =IF(OR(J4="",H14=""),"",(J4*H14)) ->  | K14: =IF(OR(K4="",H14=""),"",(K4*H14)) -> 
G15: =IF(OR(J4="",F15=""),"",(F15/J4)) ->  | H15: =IF(OR(C15="",G15="",J4=""),"",(C15*G15)) ->  | I15: =IF(OR(I4="",H15=""),"",(I4*H15)) ->  | J15: =IF(OR(J4="",H15=""),"",(J4*H15)) ->  | K15: =IF(OR(K4="",H15=""),"",(K4*H15)) -> 
G16: =IF(OR(J4="",F16=""),"",(F16/J4)) ->  | H16: =IF(OR(C16="",G16="",J4=""),"",(C16*G16)) ->  | I16: =IF(OR(I4="",H16=""),"",(I4*H16)) ->  | J16: =IF(OR(J4="",H16=""),"",(J4*H16)) ->  | K16: =IF(OR(K4="",H16=""),"",(K4*H16)) -> 
G17: =IF(OR(J4="",F17=""),"",(F17/J4)) ->  | H17: =IF(OR(C17="",G17="",J4=""),"",(C17*G17)) ->  | I17: =IF(OR(I4="",H17=""),"",(I4*H17)) ->  | J17: =IF(OR(J4="",H17=""),"",(J4*H17)) ->  | K17: =IF(OR(K4="",H17=""),"",(K4*H17)) -> 
G18: =IF(OR(J4="",F18=""),"",(F18/J4)) ->  | H18: =IF(OR(C18="",G18="",J4=""),"",(C18*G18)) ->  | I18: =IF(OR(I4="",H18=""),"",(I4*H18)) ->  | J18: =IF(OR(J4="",H18=""),"",(J4*H18)) ->  | K18: =IF(OR(K4="",H18=""),"",(K4*H18)) -> 
G19: =IF(OR(J4="",F19=""),"",(F19/J4)) ->  | H19: =IF(OR(C19="",G19="",J4=""),"",(C19*G19)) ->  | I19: =IF(OR(I4="",H19=""),"",(I4*H19)) ->  | J19: =IF(OR(J4="",H19=""),"",(J4*H19)) ->  | K19: =IF(OR(K4="",H19=""),"",(K4*H19)) -> 
G20: =IF(OR(J4="",F20=""),"",(F20/J4)) ->  | H20: =IF(OR(C20="",G20="",J4=""),"",(C20*G20)) ->  | I20: =IF(OR(I4="",H20=""),"",(I4*H20)) ->  | J20: =IF(OR(J4="",H20=""),"",(J4*H20)) ->  | K20: =IF(OR(K4="",H20=""),"",(K4*H20)) -> 
G21: =IF(OR(J4="",F21=""),"",(F21/J4)) ->  | H21: =IF(OR(C21="",G21="",J4=""),"",(C21*G21)) ->  | I21: =IF(OR(I4="",H21=""),"",(I4*H21)) ->  | J21: =IF(OR(J4="",H21=""),"",(J4*H21)) ->  | K21: =IF(OR(K4="",H21=""),"",(K4*H21)) -> 
G22: =IF(OR(J4="",F22=""),"",(F22/J4)) ->  | H22: =IF(OR(C22="",G22="",J4=""),"",(C22*G22)) ->  | I22: =IF(OR(I4="",H22=""),"",(I4*H22)) ->  | J22: =IF(OR(J4="",H22=""),"",(J4*H22)) ->  | K22: =IF(OR(K4="",H22=""),"",(K4*H22)) -> 
A23: Totals | B23: =SUM(B6:B22) -> 0 | C23: =SUM(C6:C22) -> 0 | H23: =SUM(H6:H22) -> 0 | I23: 0 | J23: 0 | K23: 0 | L23: 0 | M23: 0 | N23: 0
B24: * * Numbers in these columns are rounded.
A35: Additional Application Notes and Recommendations
A41: Ctrl + a clears worksheet | G41: For help see instructions for Dry Animal Waste Application Worksheet

Sheet Nutrient Mgt. Job Sketch (hidden)
A1: Nutrient Management - Job Sketch
A3: Draw or sketch the field, showing any sensitive areas and required setback zones. Inside each sketched field, enter total field acres and net application acres. Other relevant information, such as complementary practices or adjacent field or tract conditions may be included.
A5: Scale 1"= | E5: ft. (NA indicates sketch not to scale: grid size = 1/2" by 1/2")
A15: Perform the following operations and maintenance:
A16: Review this nutrient management plan every | G16: years.
A17: Maintain field records for at least 5 years.
A18: Calibrate application equipment to apply at recommended rates.
A19: Handle all nutrient material with caution. Wear appropriate protective clothing.
A20: Clean up residual material from equipment and dispose of properly.
A22: Additional specifications and notes:
A25: All programs and services of the Natural Resources Conservation Service are provided in a nondiscriminatory manner. The U.S. Department of Agriculture (USDA) prohibits discrimination in all its programs and activities on the basis of race, color, national origin, age, disability, and where applicable, sex, marital status, familial status, parental status, religion, sexual orientation, genetic information, political beliefs, reprisal, or because all or a part of an individual's income is derived from any public assistance program. (Not all prohibited bases apply to all programs.) Persons with disabilities who require alternative means for communication of program information (Braille, large print, audiotape, etc.) should contact USDA's TARGET Center at (202) 720-2600 (voice and TDD). To file a complaint of discrimination write to USDA, Director, Office of Civil Rights, 1400 Independence Avenue, S.W., Washington, D.C. 20250-9410 or call (800) 795-3272 (voice) or (202) 720-6382 (TDD). USDA is an equal opportunity provider and employer.
A30: Ctrl + e clears worksheet.

Sheet Liquid Waste Application (hidden)
A1: Client Name: | F1: Planner: | L1: Date:
A2: Field(s) | B2: Total Acres | C2: Field Application Spreadable Acres | D2: Crop or Grass Grown (include Sequence / Rotation if used) | E2: Crop Yield Goal | F2: Allowable P2O5 Application Rate By Field (lbs/ac/yr) (Full Rate 300) (Half Rate 150) Use OK Phosphorus Asssessment Tool | G2: Manure Application "P" Rate Ac.-In. x 1000 gal. lbs. "P2O5" | J2: Total Manure Nutrient Application Unit: lbs/1000 gallons | M2: Additional Fertilizer Nutrients To Be Applied / Yield Goal (lbs/ac)
G3: 1/8 (0.125) | H3: 3.394 | I3: =K4*H3 -> 0 | J3: Manure Analysis: (enter below)
G4: 1/4 (0.25) | H4: 6.789 | I4: =K4*H4 -> 0
G5: 1/2 (0.5) | H5: 13.577 | I5: =K4*H5 -> 0 | J5: Ac.-In. Rate | M5: N | N5: P2O5 | O5: K2O
G6: 3/4 (0.75) | H6: 20.365 | I6: =K4*H6 -> 0 | J6: N * * Total Lbs. Applied | K6: P2O5 * * Total Lbs. Applied | L6: K2O * * Total Lbs. Applied
G7: 1 in. (1.0) | H7: 27.154 | I7: =K4*H7 -> 0
G8: Maximum Water Appl. Rate Ac.-In. | H8: Actual Water Applied x 1000 gal. | I8: Lbs./acre of P2O5 Applied
G9: =IF(C9>0,F9/$K$4/$H$7,"") ->  | H9: =IF(C9>0,$K$5*$H$7*C9,"") ->  | I9: =IF(C9>0,ROUND(H9*$K$4/C9,1),"") ->  | J9: =IF(C9>0,H9*$J$4,"") ->  | K9: =IF(C9>0,C9*I9,"") ->  | L9: =IF(C9>0,H9*$L$4,"") -> 
G10: =IF(C10>0,F10/$K$4/$H$7,"") ->  | H10: =IF(C10>0,$K$5*$H$7*C10,"") ->  | I10: =IF(C10>0,ROUND(H10*$K$4/C10,1),"") ->  | J10: =IF(C10>0,H10*$J$4,"") ->  | K10: =IF(C10>0,C10*I10,"") ->  | L10: =IF(C10>0,H10*$L$4,"") -> 
A24: Totals | B24: =SUM(B9:B23) -> 0 | C24: =SUM(C9:C23) -> 0 | H24: =SUM(H9:H23) -> 0 | I24: =SUM(I9:I23) -> 0 | J24: =SUM(J9:J23) -> 0 | K24: 0 | L24: 0 | M24: 0 | N24: 0 | O24: 0
A25: * * Numbers in these columns are rounded.
A36: Additional Application Notes and Recommendations
A42: Ctrl + f clears worksheet | D42: For help see instructions on Liquid Animal Waste Application Worksheet
